{"text_format":"1","workbook":"xlsx","n_sheets":3,"sheets":["Data","Chronic","Old Transport"],"not_rendered":{"charts":0,"images":0,"macros":0,"external_links":0,"defined_names":1,"comments":0,"pivot_tables":0},"unopened":[],"bounds":{"document_bytes":16777216,"sheet_cells":100000,"rows_first":2000,"rows_last":500,"rows_between":2000,"halvings":0,"cell_chars":16384,"cell_head_chars":4096},"cells_cut":0,"cells_raw":0,"read":"whole","date_system":"1900"}

{"sheet":"Data","index":0,"n_rows":72,"n_cols":14,"rows_kept":72,"cut":false,"hidden":false,"merged":[[0,0,0,11],[1,0,1,11],[4,0,4,11],[2,0,2,11],[3,0,3,11]]}
["Tracker Live"]
[null,null,null,null,null,null,null,null,null,null,null,null,null,{"$f":"NOW()+0.125","v":"2021-04-27T17:37:05.230"}]
[]
[]
[]
["Site ID","Technology","TT/CR","Owner","Department","Assignee","Timer","SI Start Time","SI Duration","SI reason","Status","Notes"]
["AKA902WA",null,null,null,null,null,{"$f":"IF(H7=\"\",\"\",H7+TIME(I7,0,0))","v":"10:00:00"},"00:00:00",10,"Hardware","Ongoing"]
["K2P0114Z",null,null,null,null,null,{"$f":"IF(H8=\"\",\"\",H8+TIME(I8,0,0))","v":"13:37:00"},"09:37:00",4,"Hardware","Ongoing"]
["AK4911ZA",null,null,null,null,null,{"$f":"IF(H9=\"\",\"\",H9+TIME(I9,0,0))","v":"18:15:00"},"17:15:00",1,"Telco","Ongoing"]
["AK5911ZA",null,null,null,null,null,{"$f":"IF(H10=\"\",\"\",H10+TIME(I10,0,0))","v":"13:00:00"},"07:00:00",6,"Hardware","Ongoing"]
["AK7311ZA",null,null,null,null,null,"21:00:00","18:00:00",3,"Software","Completed"]
[]
[]
[]
[]
[]
[]
[]
[]
[]
[]
[]
[]
[]
[]
[]
[]
[]
[]
[]
[]
[]
[]
[]
[]
[]
[]
[]
[]
[]
[]
[]
[]
[]
[]
[]
[]
[]
[]
[]
[]
[]
[]
[]
[]
[]
[]
[]
[]
[null,null,null,null,null,null,{"$f":"IF(H60=\"\",\"\",H60+TIME(I60,0,0))","v":""}]
[null,null,null,null,null,null,""]
[null,null,null,null,null,null,""]
[null,null,null,null,null,null,""]
[null,null,null,null,null,null,""]
[null,null,null,null,null,null,""]
[null,null,null,null,null,null,""]
[null,null,null,null,null,null,""]
[null,null,null,null,null,null,""]
[null,null,null,null,null,null,""]
[null,null,null,null,null,null,""]
[null,null,null,null,null,null,""]
[null,null,null,null,null,null,""]

{"sheet":"Chronic","index":1,"n_rows":21,"n_cols":12,"rows_kept":21,"cut":false,"hidden":true,"merged":[[0,0,0,10]]}
["Chronic Availability"]
["Date","Site ID","Cell","Days Chronic","Availability","CHRONIC\nTT\\WO #","EXISTING TT?","Department","Assignee","SI Reason","Status","Notes"]
["2020-04-07","6MD1309A","B6MD1309A11",13,99.75,null,"NA","Field","Shane",null,"Ongoing","Cell faulty, failure in optical interface clears after about 30 seconds to 2 minutes.\nAlso have some transport later connection failure in S1 interface, BTS internal SW management problem, setup of X2 connectivity to gNB failed and no route to host alarms."]
["2020-04-07","6MD1309A","B6MD1309A21",13,99.75,null,"NA","Field","Shane",null,"Ongoing","Cell faulty, failure in optical interface clears after about 30 seconds to 2 minutes.\nAlso have some transport later connection failure in S1 interface, BTS internal SW management problem, setup of X2 connectivity to gNB failed and no route to host alarms."]
["2020-04-07","6MD1309A","B6MD1309A31",13,99.75,null,"NA","Field","Shane",null,"Ongoing","Cell faulty, failure in optical interface clears after about 30 seconds to 2 minutes.\nAlso have some transport later connection failure in S1 interface, BTS internal SW management problem, setup of X2 connectivity to gNB failed and no route to host alarms."]
["2020-04-07","6MD1309A","B6MD1309A41",13,99.75,null,"NA","Field","Shane",null,"Ongoing","Cell faulty, failure in optical interface clears after about 30 seconds to 2 minutes.\nAlso have some transport later connection failure in S1 interface, BTS internal SW management problem, setup of X2 connectivity to gNB failed and no route to host alarms."]
["2020-04-07","6MD1309A","B6MD1309A51",13,99.75,null,"NA","Field","Shane",null,"Ongoing","Cell faulty, failure in optical interface clears after about 30 seconds to 2 minutes.\nAlso have some transport later connection failure in S1 interface, BTS internal SW management problem, setup of X2 connectivity to gNB failed and no route to host alarms."]
["2020-04-07","6MD1309A","B6MD1309A61",13,99.75,null,"NA","Field","Shane",null,"Ongoing","Cell faulty, failure in optical interface clears after about 30 seconds to 2 minutes.\nAlso have some transport later connection failure in S1 interface, BTS internal SW management problem, setup of X2 connectivity to gNB failed and no route to host alarms."]
["2020-04-07","A2P0200A","A2P0200A_B0GPA",13,98.26,null,27511826,"Field","Olvin","MW shot","Ongoing","Olvin has tested everything on site. MW shot issue. "]
["2020-04-07","A2P0200A","A2P0200A_C0GPA",13,98.05,null,27511826,"Field","Olvin","MW shot","Ongoing","Olvin has tested everything on site. MW shot issue. "]
["2020-04-07","A2P0200A","A2P0200A_D0GPA",13,98.36,null,27511826,"Field","Olvin","MW shot","Ongoing","Olvin has tested everything on site. MW shot issue. "]
["2020-04-07","A2P0200A","A2P0200A_A0GPA",12,98,null,27511826,"Field","Olvin","MW shot","Ongoing","Olvin has tested everything on site. MW shot issue. "]
["2020-04-07","6FM1173C","L6FM1173C21",12,21.54,null,27405718,"Field","Sergio","Bird Site","Ongoing","Known issue, we have no access, bird site"]
["2020-04-07","6MD1317C","D6MD1317C41",11,99.2,null,27525747,"Field","Zapata",null,"Ongoing","Site has appeared 7 times in SNAT historicals dating back to 3/1"]
["2020-04-07","6MD1317C","L6MD1317C41",11,90.36,null,27525747,"Field","Zapata",null,"Ongoing","Site has appeared 7 times in SNAT historicals dating back to 3/1"]
["2020-04-07","6FB1050G","6FB1050G_A0GPA",10,69.599999999999994,null,"NA","Field","Shane",null,"Ongoing","Site had previous AAV frameloss issues\nBCCH Missing alarm appears several times and clears anywhere from 5 to 45 minutes."]
["2020-04-07","6FB1050G","6FB1050G_B0GPA",10,69.599999999999994,null,"NA","Field","Shane",null,"Ongoing","Site had previous AAV frameloss issues\nBCCH Missing alarm appears several times and clears anywhere from 5 to 45 minutes."]
["2020-04-07","6FB1050G","6FB1050G_C0GPA",10,69.599999999999994,null,"NA","Field","Shane",null,"Ongoing","Site had previous AAV frameloss issues\nBCCH Missing alarm appears several times and clears anywhere from 5 to 45 minutes."]
["2020-04-07","6MD1056A","F6MD1056A61",10,99.15,null,"NA","Field","Shane",null,"Ongoing","Increased BER detected on the optical connection to Radio Module, clears in about 11 seconds\nRF BB bus configuration error, clears in 5 or more seconds\n"]
["2020-04-07","6MD1056A","L6MD1056A61",10,99.15,null,"NA","Field","Shane",null,"Ongoing","Increased BER detected on the optical connection to Radio Module, clears in about 11 seconds\nRF BB bus configuration error, clears in 5 or more seconds\n"]
["2020-04-07","6MD1336A","F6MD1336A21",10,99.15,null,"NA","Field","Shane",null,"Ongoing","Increased BER detected on the optical connection to Radio Module, clears in about 11 seconds\nRF BB bus configuration error, clears in 5 or more seconds\n"]

{"sheet":"Old Transport","index":2,"n_rows":212,"n_cols":11,"rows_kept":212,"cut":false,"hidden":true,"merged":[[0,0,0,9]]}
["Transport"]
["Date","Site","IP","CSR Type","AAV Vendor","CKT","Issue","TMO TT","Vendor TT","Status","Notes"]
["2019-12-12","6FB1400M","11.197.101.92","SAR-A","FLORIDA POWER LIGHT","100948-1000","Low Uptime",26130116,"CCF - 19260393","Resolved","FOPS replaced 2 faulty rectifiers to fix the issue"]
["2019-12-15","6FB1093A","11.243.33.252","SAR-M","T-MOBILE","FL/FL6093GB/ETHERNET/6FB1093A/CP","Frame Loss",26152163,"CCF- 19261542","Resolved","SFP Replaced by FOPS 12/15/19, Ran report 12/16/19 - No Frame Loss"]
["2019-12-16","6FB1111A","11.197.18.188","SAR-A","FLORIDA POWER LIGHT","FL\\6FB1111A\\ETHERNET\\6FB1111A\\CP","Low Uptime",26154694,null,"Resolved","12/16 - Low Uptime Observed - TT assigned to FOPS by NOC"]
["2019-12-16","FL1634GM","11.182.96.60","SAR-8","T-MOBILE","FL\\6MD1634M\\ETHERNET\\FL1634GM~ODDMAD","Frame Loss","26156389 / 26156390","CCF - 19261669","Resolved","12/17 - CCF requested MW Reset of their equipment. Approved 12/16 - Sporadic Frame Loss observed - Impacting 6MD1634M / FL4963BA / FL4964BA - Opening up TT with Crown Fiber"]
["2019-12-16","A2P0047A","11.243.67.60","SAR-A","ATT","60/KRGN/754608//SB-1000","Low Uptime",26164366,null,"Resolved","12/17 - CSR swapped to SAS Olvin Investigating - 2 Consecutive days of bouncing 12/15 - 12/16"]
["2019-12-18","6MD1024Q","11.197.3.156","SAS-Mxp","FLORIDA POWER LIGHT","54702-1000","Low Uptime","Emailed to FOPS",null,"Resolved","12/19 - Gimel Investigating 12/18 - Responded to Alejandro AFR email, included Gimel to see if he can check power. Low Uptime 1 day 1 Hour"]
["2019-12-18","6MD1241E","11.197.12.60","SAR-A","FLORIDA POWER LIGHT","55782-1000","High Temp",26185909,null,"Resolved","12/19 - Rodrigo stated this was resolved yesterday 12/18 - Opened up TT for Rodrigo to investigate, verified high temp alarms in CSR"]
["2019-12-18","6FB1113A","11.197.51.188","SAR-M","ATT","60/KRGN/755764//SB-1000","Port Mismatch","Emailed to FOPS",null,"Resolved","12/19 - Emailed Baron 12/18 - Emailed FOPS - 6FB1113A_LTE_eNodeB_1/1/4"]
["2019-12-18","6MD2261E","11.197.35.28","SAR-A","ATT","60/KRGN/757857//SB-1000","Port Mismatch","Emailed to FOPS",null,"Resolved","12/19 - Emailed Doug T 12/18 - Emailed FOPS - 6MD2261E_LTE_eNodeB_1/1/3 - Second time on Report"]
["2019-12-18","FLY2501A","11.243.6.188","SAR-A","ATT","60/KRGN/759970/SB","Low Uptime",null,null,"Resolved","12/19 - Uptime maintaining, Monitoring 12/18 -Monitoring to see if CSR reboots again, if so will open up a TT for Doug T"]
["2019-12-18","6FB2121A","11.182.134.92","SAR-M","T-MOBILE","FL/FL2121GB/ETHERNET/6FB2121A/CP","Low Uptime",26192321,null,"Resolved","12/19 - Low Uptime detected on site. 12/18 EP: needs to take action or open a TT with FOPS to check equipment on site. spike of frame lost still showin onec per day since last week 12/12th and sice then is AFR top offender site."]
["2019-12-27","6FB2160A","11.197.162.220","SAR-M","ATT","60/KRGN/754737//SB-1000","Frame Loss",26261891,null,"Resolved","12/27 - Frame loss is being caused by faulty ATT demarc connection box. ATT TT required"]
["2019-12-27","6FB1132B","11.243.35.220","SAR-M","FLORIDA POWER LIGHT","57872-1000","Frame Loss",26272895,null,"Resolved","12/27 EP: a lot of spikes of AF/AFR related with same spikes of frame lost causing comple of time bouncing the site."]
["2020-01-07","6MD1153G","11.243.25.188","SAR-A","FLORIDA POWER LIGHT","57134-1000","Port Mismatch",26346749,null,"Resolved","1/6 - Sent Email to FOPS port 1/1/3 half duplex"]
["2020-01-07","6WP1037A","11.243.45.156","SAS-Mxp","FLORIDA POWER LIGHT","61013-500","Low Uptime",26385551,"Doug","Resolved","1/7 - Shows CSR reboots 1/4 , 1/5 , 1/6 - Alerting FOPS and assigning TT for investigation"]
["2020-01-07","6FB2162A","11.243.87.188","SAR-F","ATT","60/KRGN/755775//SB-250","Low Uptime",26385870,"Shane","Resolved","1/7 - Shows CSR reboots 1/5 , 1/6 - Alerting FOPS and assigning TT for investigation"]
["2020-01-16","6NC1011A","11.197.11.188","SAS-Mxp","Century Link","15.KRGS.46809..SMPN-500","Frame Loss","Notified FOPS","Ruben","Resolved","As per Report / Bad Ethernet Cablet"]
["2020-01-16","6MD1147A","11.197.9.60","SAR-M","FLORIDA POWER LIGHT","FL/FL1147GM/ETHERNET/6MD1147A/CP","Frame Loss",26801904,"CCF-20267806","Resolved","As per Report"]
["2020-01-16","6MD1076T","11.197.23.124","SAR-M","FLORIDA POWER LIGHT","56773-1000","Frame Loss",26801933,"CCF-20267808","Resolved","As per Report"]
["2020-01-16","6FB1401M","11.243.101.124","SAR-A","FLORIDA POWER LIGHT","100805-1000","Frame Loss","Notified FOPS","Gimel","Resolved","FOPS replaced 2 faulty rectifiers to fix the issue"]
["2020-01-24","6MD1192A","11.182.56.188","SAR-A","ATT","60/KRGN/755406/SB-1000","Frame Loss","Notified FOPS","Baron","Resolved","As per Report"]
["2020-01-24","6MD1166A","11.182.56.124","SAR-M","ATT","60/KRGN/755400/SB-1000","Frame Loss","Notified FOPS","Baron","Resolved","As per Report"]
["2020-01-30","6WP1112F","11.197.42.188","SAS-Mxp","FLORIDA POWER LIGHT","61347-1000","Port Mismatch",26934562,"Jeff Jones","Resolved","2/10 - Escalated 2/4 - Jeff Pending Access from Crown Castle - Port 1/1/6 Speed mismatch - resolved - Ip address change 11.243.211.252"]
["2020-02-10","6WP1083C","11.182.62.156","SAR-M","ATT","60/KRGN/756079//SB-1000","Port Mismatch",27026334,"Olvin Gomez","Resolved","2/10 - Port 1/1/7 - Emailed Tim S"]
["2020-02-10","6WP1298G","11.197.5.28","SAR-A","ATT","60/KRGN/755732//SB~5","Port Mismatch",27054195,"Sergio","Resolved","2/10 - Port 1/1/3 - Emailed Tim S"]
["2020-02-11","6FB1400M","11.197.101.92","SAR-A","FLORIDA POWER LIGHT","100948-1000","Frame Loss",null,null,"Resolved","2/11 - Frame loss observed on 2/9/2020 and 2/10/2020"]
["2020-03-11","6WP1142A","11.243.63.156","SAR-A","ATT","60/KRGN/755833//SB-1000","CSR rebooting ",27329880,"Doug ","Resolved","As per Report"]
["2020-03-11","6WP2059B","11.243.64.188","SAS-Mxp","ATT","60/KRGN/755984//SB-3","Frame loss",27333771,"Doug ","Resolved","As per Report"]
["2020-03-11","A2P0175A","11.197.13.92","SAR-M","CENTURYLINK","15/KRGS/44932//SMPN~2","CSR rebooting ",27334327,"Olvin Gomez","Resolved","Monitoring"]
["2020-03-11","A2P0028C","11.243.92.188","SAS-Mxp","ATT","60/KRGN/754363//SB-500","Frame loss",27333963,"Olvin Gomez","Resolved","No notes"]
["2020-03-20","6SE1128A","11.182.46.28","SAS-Mxp","T-MOBILE","FL/6MD1192A/ETHERNET/6SE1128A/MW","Frame loss",null,"Baron","Resolved","Replaced SFP and Ethernet cable"]
["2020-03-20","6MD1192A","11.182.56.188","SAR-A","T-MOBILE","60/KRGN/755406/SB-1000","Frame loss",null,"Baron","Resolved","Replaced SFP and Ethernet cable"]
["2020-03-27","6WP1436M",{"$f":"_xlfn.IFNA(INDEX(#REF!,MATCH('Old Transport'!B35,#REF!,0)),\"\")","v":{"$error":"#REF!"}},{"$f":"_xlfn.IFNA(INDEX(#REF!,MATCH('Old Transport'!B35,#REF!,0)),\"\")","v":{"$error":"#REF!"}},{"$f":"_xlfn.IFNA(INDEX(#REF!,MATCH('Old Transport'!B35,#REF!,0)),\"\")","v":{"$error":"#REF!"}},{"$f":"_xlfn.IFNA(INDEX(#REF!,MATCH('Old Transport'!B35,#REF!,0)),\"\")","v":{"$error":"#REF!"}},"Frame loss",27459164,"Doug ","Resolved"," 4/6 CSR replaced by doug | 4/7 CCF found Buffer sizing issues on QOS - Frame loss stopped - Monitoring"]
["2020-03-31","6MD1426A",{"$f":"_xlfn.IFNA(INDEX(#REF!,MATCH('Old Transport'!B36,#REF!,0)),\"\")","v":{"$error":"#REF!"}},{"$f":"_xlfn.IFNA(INDEX(#REF!,MATCH('Old Transport'!B36,#REF!,0)),\"\")","v":{"$error":"#REF!"}},{"$f":"_xlfn.IFNA(INDEX(#REF!,MATCH('Old Transport'!B36,#REF!,0)),\"\")","v":{"$error":"#REF!"}},{"$f":"_xlfn.IFNA(INDEX(#REF!,MATCH('Old Transport'!B36,#REF!,0)),\"\")","v":{"$error":"#REF!"}},"Port Mismatch",null,"Abner","Resolved","3/31 - Port 1/1/4 - Emailed Tim S | 4/1 - Abner Investigating"]
["2020-03-31","6MM1208M",{"$f":"_xlfn.IFNA(INDEX(#REF!,MATCH('Old Transport'!B37,#REF!,0)),\"\")","v":{"$error":"#REF!"}},{"$f":"_xlfn.IFNA(INDEX(#REF!,MATCH('Old Transport'!B37,#REF!,0)),\"\")","v":{"$error":"#REF!"}},{"$f":"_xlfn.IFNA(INDEX(#REF!,MATCH('Old Transport'!B37,#REF!,0)),\"\")","v":{"$error":"#REF!"}},{"$f":"_xlfn.IFNA(INDEX(#REF!,MATCH('Old Transport'!B37,#REF!,0)),\"\")","v":{"$error":"#REF!"}},"Port Mismatch",null,"Baron","Resolved","3/31 - Port 1/1/6 - Emailed Tim S | 4/1 -  Baron Informed | 4/6 - Emailed FOPS again concerning this"]
["2020-03-31","6WP1112F",{"$f":"_xlfn.IFNA(INDEX(#REF!,MATCH('Old Transport'!B38,#REF!,0)),\"\")","v":{"$error":"#REF!"}},{"$f":"_xlfn.IFNA(INDEX(#REF!,MATCH('Old Transport'!B38,#REF!,0)),\"\")","v":{"$error":"#REF!"}},{"$f":"_xlfn.IFNA(INDEX(#REF!,MATCH('Old Transport'!B38,#REF!,0)),\"\")","v":{"$error":"#REF!"}},{"$f":"_xlfn.IFNA(INDEX(#REF!,MATCH('Old Transport'!B38,#REF!,0)),\"\")","v":{"$error":"#REF!"}},"Port Mismatch",null,"Jeff Jones","Resolved","3/31 - Port 1/1/5 - Emailed Tim S | 4/1 - Jeff Jones Investigating"]
["2020-04-06","6FM1004A",{"$f":"_xlfn.IFNA(INDEX(#REF!,MATCH('Old Transport'!B39,#REF!,0)),\"\")","v":{"$error":"#REF!"}},{"$f":"_xlfn.IFNA(INDEX(#REF!,MATCH('Old Transport'!B39,#REF!,0)),\"\")","v":{"$error":"#REF!"}},{"$f":"_xlfn.IFNA(INDEX(#REF!,MATCH('Old Transport'!B39,#REF!,0)),\"\")","v":{"$error":"#REF!"}},{"$f":"_xlfn.IFNA(INDEX(#REF!,MATCH('Old Transport'!B39,#REF!,0)),\"\")","v":{"$error":"#REF!"}},"Frame Loss",null,"Leo","Resolved","4/6 - TT Assigned to Leo to investigate Frame Loss on AAV port - Called Leo he will address | 4/7 - Leo replaced SFPs , monitoring"]
["2020-04-08","6FB2162A",{"$f":"_xlfn.IFNA(INDEX(#REF!,MATCH('Old Transport'!B40,#REF!,0)),\"\")","v":{"$error":"#REF!"}},{"$f":"_xlfn.IFNA(INDEX(#REF!,MATCH('Old Transport'!B40,#REF!,0)),\"\")","v":{"$error":"#REF!"}},{"$f":"_xlfn.IFNA(INDEX(#REF!,MATCH('Old Transport'!B40,#REF!,0)),\"\")","v":{"$error":"#REF!"}},{"$f":"_xlfn.IFNA(INDEX(#REF!,MATCH('Old Transport'!B40,#REF!,0)),\"\")","v":{"$error":"#REF!"}},"CSR rebooting ",null,"Shane","Resolved","4/8 - Spoke to Shane about CSR Power instabillity - UPS was connected previously. Shane will be reviewing this location for further opportunties (Broward Court House, Crime LAb)"]
["2020-04-08","6MD1027E",{"$f":"_xlfn.IFNA(INDEX(#REF!,MATCH('Old Transport'!B41,#REF!,0)),\"\")","v":{"$error":"#REF!"}},{"$f":"_xlfn.IFNA(INDEX(#REF!,MATCH('Old Transport'!B41,#REF!,0)),\"\")","v":{"$error":"#REF!"}},{"$f":"_xlfn.IFNA(INDEX(#REF!,MATCH('Old Transport'!B41,#REF!,0)),\"\")","v":{"$error":"#REF!"}},{"$f":"_xlfn.IFNA(INDEX(#REF!,MATCH('Old Transport'!B41,#REF!,0)),\"\")","v":{"$error":"#REF!"}},"CSR rebooting ",null,"Gimel","Resolved","4/8 - Needs to be monitored, last reboot 3 days ago - On Jan's top report"]
["2020-04-08","6MD1622M",{"$f":"_xlfn.IFNA(INDEX(#REF!,MATCH('Old Transport'!B42,#REF!,0)),\"\")","v":{"$error":"#REF!"}},{"$f":"_xlfn.IFNA(INDEX(#REF!,MATCH('Old Transport'!B42,#REF!,0)),\"\")","v":{"$error":"#REF!"}},{"$f":"_xlfn.IFNA(INDEX(#REF!,MATCH('Old Transport'!B42,#REF!,0)),\"\")","v":{"$error":"#REF!"}},{"$f":"_xlfn.IFNA(INDEX(#REF!,MATCH('Old Transport'!B42,#REF!,0)),\"\")","v":{"$error":"#REF!"}},"CSR rebooting ",null,"Rodrigo","Resolved","4/8 - Needs to be monitored, last reboot 3 days ago - On Jan's top report"]
["2020-04-28","6MD1286A",{"$f":"_xlfn.IFNA(INDEX(#REF!,MATCH('Old Transport'!B43,#REF!,0)),\"\")","v":{"$error":"#REF!"}},{"$f":"_xlfn.IFNA(INDEX(#REF!,MATCH('Old Transport'!B43,#REF!,0)),\"\")","v":{"$error":"#REF!"}},{"$f":"_xlfn.IFNA(INDEX(#REF!,MATCH('Old Transport'!B43,#REF!,0)),\"\")","v":{"$error":"#REF!"}},{"$f":"_xlfn.IFNA(INDEX(#REF!,MATCH('Old Transport'!B43,#REF!,0)),\"\")","v":{"$error":"#REF!"}},"Frame Loss",27716199,"Luis Z","Resolved","4/28 - RF Degradation observed , Frame loss , FCS errors , Symbol errors. Opened up TT for Luis Z | 4/29 - Luis replaced SFPs , No errors at this time. Monitoring"]
["2020-05-01","6WP1216A",{"$f":"_xlfn.IFNA(INDEX(#REF!,MATCH('Old Transport'!B44,#REF!,0)),\"\")","v":{"$error":"#REF!"}},{"$f":"_xlfn.IFNA(INDEX(#REF!,MATCH('Old Transport'!B44,#REF!,0)),\"\")","v":{"$error":"#REF!"}},{"$f":"_xlfn.IFNA(INDEX(#REF!,MATCH('Old Transport'!B44,#REF!,0)),\"\")","v":{"$error":"#REF!"}},{"$f":"_xlfn.IFNA(INDEX(#REF!,MATCH('Old Transport'!B44,#REF!,0)),\"\")","v":{"$error":"#REF!"}},"Frame Loss",null,null,"Resolved","5/20 AFR degradation spikes, frame loss, bouncing on node1"]
["2020-05-21","6MD1177A",{"$f":"_xlfn.IFNA(INDEX(#REF!,MATCH('Old Transport'!B45,#REF!,0)),\"\")","v":{"$error":"#REF!"}},{"$f":"_xlfn.IFNA(INDEX(#REF!,MATCH('Old Transport'!B45,#REF!,0)),\"\")","v":{"$error":"#REF!"}},{"$f":"_xlfn.IFNA(INDEX(#REF!,MATCH('Old Transport'!B45,#REF!,0)),\"\")","v":{"$error":"#REF!"}},{"$f":"_xlfn.IFNA(INDEX(#REF!,MATCH('Old Transport'!B45,#REF!,0)),\"\")","v":{"$error":"#REF!"}},"Frame Loss",27955266,"Abner","Resolved","major degradation of these spike happends on L700 layer and L21 Sector 4 "]
["2020-05-27","6MD1761M",{"$f":"_xlfn.IFNA(INDEX(#REF!,MATCH('Old Transport'!B46,#REF!,0)),\"\")","v":{"$error":"#REF!"}},{"$f":"_xlfn.IFNA(INDEX(#REF!,MATCH('Old Transport'!B46,#REF!,0)),\"\")","v":{"$error":"#REF!"}},{"$f":"_xlfn.IFNA(INDEX(#REF!,MATCH('Old Transport'!B46,#REF!,0)),\"\")","v":{"$error":"#REF!"}},{"$f":"_xlfn.IFNA(INDEX(#REF!,MATCH('Old Transport'!B46,#REF!,0)),\"\")","v":{"$error":"#REF!"}},"Frame Loss",27999810,"Remmie","Resolved","as per report ( REPLACED CONTROLLER CARD)"]
["2020-05-28","6FB1446M",{"$f":"_xlfn.IFNA(INDEX(#REF!,MATCH('Old Transport'!B47,#REF!,0)),\"\")","v":{"$error":"#REF!"}},{"$f":"_xlfn.IFNA(INDEX(#REF!,MATCH('Old Transport'!B47,#REF!,0)),\"\")","v":{"$error":"#REF!"}},{"$f":"_xlfn.IFNA(INDEX(#REF!,MATCH('Old Transport'!B47,#REF!,0)),\"\")","v":{"$error":"#REF!"}},{"$f":"_xlfn.IFNA(INDEX(#REF!,MATCH('Old Transport'!B47,#REF!,0)),\"\")","v":{"$error":"#REF!"}},"Frame Loss",28014675,"Tim Smith ","Resolved","Tim Replaced rectifier in the afternoon .....monitoring until tomorrow "]
["2020-06-01","6FB1135B",{"$f":"_xlfn.IFNA(INDEX(#REF!,MATCH('Old Transport'!B48,#REF!,0)),\"\")","v":{"$error":"#REF!"}},{"$f":"_xlfn.IFNA(INDEX(#REF!,MATCH('Old Transport'!B48,#REF!,0)),\"\")","v":{"$error":"#REF!"}},{"$f":"_xlfn.IFNA(INDEX(#REF!,MATCH('Old Transport'!B48,#REF!,0)),\"\")","v":{"$error":"#REF!"}},{"$f":"_xlfn.IFNA(INDEX(#REF!,MATCH('Old Transport'!B48,#REF!,0)),\"\")","v":{"$error":"#REF!"}},"Frame Loss",28040996,"LABOSS","Resolved","As per DAILY Report(ring 7141)"]
["2020-06-01","6FB1072B",{"$f":"_xlfn.IFNA(INDEX(#REF!,MATCH('Old Transport'!B49,#REF!,0)),\"\")","v":{"$error":"#REF!"}},{"$f":"_xlfn.IFNA(INDEX(#REF!,MATCH('Old Transport'!B49,#REF!,0)),\"\")","v":{"$error":"#REF!"}},{"$f":"_xlfn.IFNA(INDEX(#REF!,MATCH('Old Transport'!B49,#REF!,0)),\"\")","v":{"$error":"#REF!"}},{"$f":"_xlfn.IFNA(INDEX(#REF!,MATCH('Old Transport'!B49,#REF!,0)),\"\")","v":{"$error":"#REF!"}},"Frame Loss",28041170,"GIMEL","Resolved","As per DAILY Report(ring 7141)"]
["2020-06-03","6MD1136A",{"$f":"_xlfn.IFNA(INDEX(#REF!,MATCH('Old Transport'!B50,#REF!,0)),\"\")","v":{"$error":"#REF!"}},{"$f":"_xlfn.IFNA(INDEX(#REF!,MATCH('Old Transport'!B50,#REF!,0)),\"\")","v":{"$error":"#REF!"}},{"$f":"_xlfn.IFNA(INDEX(#REF!,MATCH('Old Transport'!B50,#REF!,0)),\"\")","v":{"$error":"#REF!"}},{"$f":"_xlfn.IFNA(INDEX(#REF!,MATCH('Old Transport'!B50,#REF!,0)),\"\")","v":{"$error":"#REF!"}},"Frame Loss",28067734,"Abner","Resolved","Cleaned Fiber and now ok "]
["2020-06-12","6MD1171A","11.243.11.124",null,{"$f":"_xlfn.IFNA(INDEX(#REF!,MATCH('Old Transport'!B51,#REF!,0)),\"\")","v":{"$error":"#REF!"}},55612,"Frame Loss",28149431,"REMMIE","Resolved","As per DAILY Report"]
["2020-06-12","6MD1024Q",{"$f":"_xlfn.IFNA(INDEX(#REF!,MATCH('Old Transport'!B52,#REF!,0)),\"\")","v":{"$error":"#REF!"}},{"$f":"_xlfn.IFNA(INDEX(#REF!,MATCH('Old Transport'!B52,#REF!,0)),\"\")","v":{"$error":"#REF!"}},{"$f":"_xlfn.IFNA(INDEX(#REF!,MATCH('Old Transport'!B52,#REF!,0)),\"\")","v":{"$error":"#REF!"}},54702,"Frame Loss",28149534,"ABNER","Resolved","As per DAILY Report"]
["2020-06-12","6FB1176A",{"$f":"_xlfn.IFNA(INDEX(#REF!,MATCH('Old Transport'!B53,#REF!,0)),\"\")","v":{"$error":"#REF!"}},{"$f":"_xlfn.IFNA(INDEX(#REF!,MATCH('Old Transport'!B53,#REF!,0)),\"\")","v":{"$error":"#REF!"}},{"$f":"_xlfn.IFNA(INDEX(#REF!,MATCH('Old Transport'!B53,#REF!,0)),\"\")","v":{"$error":"#REF!"}},{"$f":"_xlfn.IFNA(INDEX(#REF!,MATCH('Old Transport'!B53,#REF!,0)),\"\")","v":{"$error":"#REF!"}},"Frame Loss",28149570,"KERWIN","Resolved","As per DAILY Report "]
["2020-06-12","6MD1237A",{"$f":"_xlfn.IFNA(INDEX(#REF!,MATCH('Old Transport'!B54,#REF!,0)),\"\")","v":{"$error":"#REF!"}},{"$f":"_xlfn.IFNA(INDEX(#REF!,MATCH('Old Transport'!B54,#REF!,0)),\"\")","v":{"$error":"#REF!"}},{"$f":"_xlfn.IFNA(INDEX(#REF!,MATCH('Old Transport'!B54,#REF!,0)),\"\")","v":{"$error":"#REF!"}},{"$f":"_xlfn.IFNA(INDEX(#REF!,MATCH('Old Transport'!B54,#REF!,0)),\"\")","v":{"$error":"#REF!"}},"Frame Loss",28149621,"LMendoza","Resolved","As per DAILY Report"]
["2020-06-12","6MD1607M",{"$f":"_xlfn.IFNA(INDEX(#REF!,MATCH('Old Transport'!B55,#REF!,0)),\"\")","v":{"$error":"#REF!"}},{"$f":"_xlfn.IFNA(INDEX(#REF!,MATCH('Old Transport'!B55,#REF!,0)),\"\")","v":{"$error":"#REF!"}},{"$f":"_xlfn.IFNA(INDEX(#REF!,MATCH('Old Transport'!B55,#REF!,0)),\"\")","v":{"$error":"#REF!"}},{"$f":"_xlfn.IFNA(INDEX(#REF!,MATCH('Old Transport'!B55,#REF!,0)),\"\")","v":{"$error":"#REF!"}},"Frame Loss",28149665,"LMendoza","Resolved","As per DAILY Report"]
["2020-06-15","6NC1056A",{"$f":"_xlfn.IFNA(INDEX(#REF!,MATCH('Old Transport'!B56,#REF!,0)),\"\")","v":{"$error":"#REF!"}},{"$f":"_xlfn.IFNA(INDEX(#REF!,MATCH('Old Transport'!B56,#REF!,0)),\"\")","v":{"$error":"#REF!"}},{"$f":"_xlfn.IFNA(INDEX(#REF!,MATCH('Old Transport'!B56,#REF!,0)),\"\")","v":{"$error":"#REF!"}},{"$f":"_xlfn.IFNA(INDEX(#REF!,MATCH('Old Transport'!B56,#REF!,0)),\"\")","v":{"$error":"#REF!"}},"Frame Loss",28168538,"FREDDY ","Resolved","As per DAILY Report created a TT with CL on 06/18/20"]
["2020-06-15","6FB1030A",{"$f":"_xlfn.IFNA(INDEX(#REF!,MATCH('Old Transport'!B57,#REF!,0)),\"\")","v":{"$error":"#REF!"}},{"$f":"_xlfn.IFNA(INDEX(#REF!,MATCH('Old Transport'!B57,#REF!,0)),\"\")","v":{"$error":"#REF!"}},{"$f":"_xlfn.IFNA(INDEX(#REF!,MATCH('Old Transport'!B57,#REF!,0)),\"\")","v":{"$error":"#REF!"}},{"$f":"_xlfn.IFNA(INDEX(#REF!,MATCH('Old Transport'!B57,#REF!,0)),\"\")","v":{"$error":"#REF!"}},"Frame Loss",28168695,"jermaine","Resolved","As per DAILY Report"]
["2020-06-15","6MD1761M",{"$f":"_xlfn.IFNA(INDEX(#REF!,MATCH('Old Transport'!B58,#REF!,0)),\"\")","v":{"$error":"#REF!"}},{"$f":"_xlfn.IFNA(INDEX(#REF!,MATCH('Old Transport'!B58,#REF!,0)),\"\")","v":{"$error":"#REF!"}},{"$f":"_xlfn.IFNA(INDEX(#REF!,MATCH('Old Transport'!B58,#REF!,0)),\"\")","v":{"$error":"#REF!"}},{"$f":"_xlfn.IFNA(INDEX(#REF!,MATCH('Old Transport'!B58,#REF!,0)),\"\")","v":{"$error":"#REF!"}},"Frame Loss",27999810,"REMMIE","Resolved","As per DAILY Report"]
["2020-06-15","6MD1286A",{"$f":"_xlfn.IFNA(INDEX(#REF!,MATCH('Old Transport'!B59,#REF!,0)),\"\")","v":{"$error":"#REF!"}},{"$f":"_xlfn.IFNA(INDEX(#REF!,MATCH('Old Transport'!B59,#REF!,0)),\"\")","v":{"$error":"#REF!"}},{"$f":"_xlfn.IFNA(INDEX(#REF!,MATCH('Old Transport'!B59,#REF!,0)),\"\")","v":{"$error":"#REF!"}},{"$f":"_xlfn.IFNA(INDEX(#REF!,MATCH('Old Transport'!B59,#REF!,0)),\"\")","v":{"$error":"#REF!"}},"Frame Loss",28168759,"ZAPATA","Resolved","As per DAILY Report"]
["2020-06-22","6FB2139A",{"$f":"_xlfn.IFNA(INDEX(#REF!,MATCH('Old Transport'!B60,#REF!,0)),\"\")","v":{"$error":"#REF!"}},{"$f":"_xlfn.IFNA(INDEX(#REF!,MATCH('Old Transport'!B60,#REF!,0)),\"\")","v":{"$error":"#REF!"}},{"$f":"_xlfn.IFNA(INDEX(#REF!,MATCH('Old Transport'!B60,#REF!,0)),\"\")","v":{"$error":"#REF!"}},{"$f":"_xlfn.IFNA(INDEX(#REF!,MATCH('Old Transport'!B60,#REF!,0)),\"\")","v":{"$error":"#REF!"}},"Frame Loss",28238627,"Tim Smith ","Resolved","As per DAILY Report"]
["2020-06-22","6FB1208F",{"$f":"_xlfn.IFNA(INDEX(#REF!,MATCH('Old Transport'!B61,#REF!,0)),\"\")","v":{"$error":"#REF!"}},{"$f":"_xlfn.IFNA(INDEX(#REF!,MATCH('Old Transport'!B61,#REF!,0)),\"\")","v":{"$error":"#REF!"}},{"$f":"_xlfn.IFNA(INDEX(#REF!,MATCH('Old Transport'!B61,#REF!,0)),\"\")","v":{"$error":"#REF!"}},{"$f":"_xlfn.IFNA(INDEX(#REF!,MATCH('Old Transport'!B61,#REF!,0)),\"\")","v":{"$error":"#REF!"}},"Frame Loss",28238783,"Kerwin ","Resolved","As per DAILY Report"]
["2020-06-23","6FB1141D",{"$f":"_xlfn.IFNA(INDEX(#REF!,MATCH('Old Transport'!B62,#REF!,0)),\"\")","v":{"$error":"#REF!"}},{"$f":"_xlfn.IFNA(INDEX(#REF!,MATCH('Old Transport'!B62,#REF!,0)),\"\")","v":{"$error":"#REF!"}},{"$f":"_xlfn.IFNA(INDEX(#REF!,MATCH('Old Transport'!B62,#REF!,0)),\"\")","v":{"$error":"#REF!"}},{"$f":"_xlfn.IFNA(INDEX(#REF!,MATCH('Old Transport'!B62,#REF!,0)),\"\")","v":{"$error":"#REF!"}},"Frame Loss",28250040,"Tim Smith ","Resolved","As per DAILY Report"]
["2020-06-30","6MD1171A",{"$f":"_xlfn.IFNA(INDEX(#REF!,MATCH('Old Transport'!B63,#REF!,0)),\"\")","v":{"$error":"#REF!"}},{"$f":"_xlfn.IFNA(INDEX(#REF!,MATCH('Old Transport'!B63,#REF!,0)),\"\")","v":{"$error":"#REF!"}},{"$f":"_xlfn.IFNA(INDEX(#REF!,MATCH('Old Transport'!B63,#REF!,0)),\"\")","v":{"$error":"#REF!"}},{"$f":"_xlfn.IFNA(INDEX(#REF!,MATCH('Old Transport'!B63,#REF!,0)),\"\")","v":{"$error":"#REF!"}},"Frame Loss",28149431,"STEVEN","Resolved","As per DAILY Report"]
["2020-06-30","6MD1112A","11.243.11.156",{"$f":"_xlfn.IFNA(INDEX(#REF!,MATCH('Old Transport'!B64,#REF!,0)),\"\")","v":{"$error":"#REF!"}},{"$f":"_xlfn.IFNA(INDEX(#REF!,MATCH('Old Transport'!B64,#REF!,0)),\"\")","v":{"$error":"#REF!"}},null,"Frame Loss",28314502,"STEVEN","Resolved","As per DAILY Report"]
["2020-06-30","6MD2102D",{"$f":"_xlfn.IFNA(INDEX(#REF!,MATCH('Old Transport'!B65,#REF!,0)),\"\")","v":{"$error":"#REF!"}},{"$f":"_xlfn.IFNA(INDEX(#REF!,MATCH('Old Transport'!B65,#REF!,0)),\"\")","v":{"$error":"#REF!"}},{"$f":"_xlfn.IFNA(INDEX(#REF!,MATCH('Old Transport'!B65,#REF!,0)),\"\")","v":{"$error":"#REF!"}},{"$f":"_xlfn.IFNA(INDEX(#REF!,MATCH('Old Transport'!B65,#REF!,0)),\"\")","v":{"$error":"#REF!"}},"Frame Loss",28314502,"STEVEN","Resolved","As per DAILY Report"]
["2020-07-02","6MM1216A",{"$f":"_xlfn.IFNA(INDEX(#REF!,MATCH('Old Transport'!B66,#REF!,0)),\"\")","v":{"$error":"#REF!"}},{"$f":"_xlfn.IFNA(INDEX(#REF!,MATCH('Old Transport'!B66,#REF!,0)),\"\")","v":{"$error":"#REF!"}},{"$f":"_xlfn.IFNA(INDEX(#REF!,MATCH('Old Transport'!B66,#REF!,0)),\"\")","v":{"$error":"#REF!"}},{"$f":"_xlfn.IFNA(INDEX(#REF!,MATCH('Old Transport'!B66,#REF!,0)),\"\")","v":{"$error":"#REF!"}},"Frame Loss",28340108,"Baron ","Resolved","As per RF"]
["2020-07-03","6MD1286A",{"$f":"_xlfn.IFNA(INDEX(#REF!,MATCH('Old Transport'!B67,#REF!,0)),\"\")","v":{"$error":"#REF!"}},{"$f":"_xlfn.IFNA(INDEX(#REF!,MATCH('Old Transport'!B67,#REF!,0)),\"\")","v":{"$error":"#REF!"}},{"$f":"_xlfn.IFNA(INDEX(#REF!,MATCH('Old Transport'!B67,#REF!,0)),\"\")","v":{"$error":"#REF!"}},{"$f":"_xlfn.IFNA(INDEX(#REF!,MATCH('Old Transport'!B67,#REF!,0)),\"\")","v":{"$error":"#REF!"}},"Frame Loss",28345164,"Steven ","Resolved","6MD1286A "]
["2020-07-10","6MD2204M",{"$f":"_xlfn.IFNA(INDEX(#REF!,MATCH('Old Transport'!B68,#REF!,0)),\"\")","v":{"$error":"#REF!"}},{"$f":"_xlfn.IFNA(INDEX(#REF!,MATCH('Old Transport'!B68,#REF!,0)),\"\")","v":{"$error":"#REF!"}},{"$f":"_xlfn.IFNA(INDEX(#REF!,MATCH('Old Transport'!B68,#REF!,0)),\"\")","v":{"$error":"#REF!"}},{"$f":"_xlfn.IFNA(INDEX(#REF!,MATCH('Old Transport'!B68,#REF!,0)),\"\")","v":{"$error":"#REF!"}},"Port Mismatch",28479837,"Gimel","Resolved","7/13 -Opened up TT for Gimel as follow up, tried remote troubleshooting techniques 7/10 - Steven Emailed FOPS concerning Port Mismatch "]
["2020-07-13","6MD1680M",{"$f":"_xlfn.IFNA(INDEX(#REF!,MATCH('Old Transport'!B69,#REF!,0)),\"\")","v":{"$error":"#REF!"}},{"$f":"_xlfn.IFNA(INDEX(#REF!,MATCH('Old Transport'!B69,#REF!,0)),\"\")","v":{"$error":"#REF!"}},{"$f":"_xlfn.IFNA(INDEX(#REF!,MATCH('Old Transport'!B69,#REF!,0)),\"\")","v":{"$error":"#REF!"}},{"$f":"_xlfn.IFNA(INDEX(#REF!,MATCH('Old Transport'!B69,#REF!,0)),\"\")","v":{"$error":"#REF!"}},"Frame loss",28480644,"Brad","Resolved","7/13 - CSR shows low uptime 2 hours 33 min as of 2:39 PM - Hub Router FL1680GM has not rebooted at all - Opened up TT for Bradley (124 Days)"]
["2020-07-13","6MD1761M",{"$f":"_xlfn.IFNA(INDEX(#REF!,MATCH('Old Transport'!B70,#REF!,0)),\"\")","v":{"$error":"#REF!"}},{"$f":"_xlfn.IFNA(INDEX(#REF!,MATCH('Old Transport'!B70,#REF!,0)),\"\")","v":{"$error":"#REF!"}},{"$f":"_xlfn.IFNA(INDEX(#REF!,MATCH('Old Transport'!B70,#REF!,0)),\"\")","v":{"$error":"#REF!"}},{"$f":"_xlfn.IFNA(INDEX(#REF!,MATCH('Old Transport'!B70,#REF!,0)),\"\")","v":{"$error":"#REF!"}},"Frame loss",28444073,"Jan","Resolved","7/13 - Repeat Offender  - Jan Escalating with Mark Lyngholm - OU068412"]
["2020-07-13","A2P0052A",{"$f":"_xlfn.IFNA(INDEX(#REF!,MATCH('Old Transport'!B71,#REF!,0)),\"\")","v":{"$error":"#REF!"}},{"$f":"_xlfn.IFNA(INDEX(#REF!,MATCH('Old Transport'!B71,#REF!,0)),\"\")","v":{"$error":"#REF!"}},{"$f":"_xlfn.IFNA(INDEX(#REF!,MATCH('Old Transport'!B71,#REF!,0)),\"\")","v":{"$error":"#REF!"}},{"$f":"_xlfn.IFNA(INDEX(#REF!,MATCH('Old Transport'!B71,#REF!,0)),\"\")","v":{"$error":"#REF!"}},"Frame loss",null,"Derek","Resolved","7/13 - MW Recipient Site- Issues with Ceragon on 6/13 FOPS needed to switch to Fastback, Ceragon part on order"]
["2020-07-13","6NC1010A",{"$f":"_xlfn.IFNA(INDEX(#REF!,MATCH('Old Transport'!B72,#REF!,0)),\"\")","v":{"$error":"#REF!"}},{"$f":"_xlfn.IFNA(INDEX(#REF!,MATCH('Old Transport'!B72,#REF!,0)),\"\")","v":{"$error":"#REF!"}},{"$f":"_xlfn.IFNA(INDEX(#REF!,MATCH('Old Transport'!B72,#REF!,0)),\"\")","v":{"$error":"#REF!"}},{"$f":"_xlfn.IFNA(INDEX(#REF!,MATCH('Old Transport'!B72,#REF!,0)),\"\")","v":{"$error":"#REF!"}},"Frame loss",null,"Rees","Resolved","7/13 - Site shows 4 errored days in last 7. No Errors observed on port, High uptime on site"]
["2020-07-14","6WP1212E",{"$f":"_xlfn.IFNA(INDEX(#REF!,MATCH('Old Transport'!B73,#REF!,0)),\"\")","v":{"$error":"#REF!"}},{"$f":"_xlfn.IFNA(INDEX(#REF!,MATCH('Old Transport'!B73,#REF!,0)),\"\")","v":{"$error":"#REF!"}},{"$f":"_xlfn.IFNA(INDEX(#REF!,MATCH('Old Transport'!B73,#REF!,0)),\"\")","v":{"$error":"#REF!"}},{"$f":"_xlfn.IFNA(INDEX(#REF!,MATCH('Old Transport'!B73,#REF!,0)),\"\")","v":{"$error":"#REF!"}},"Frame loss",28496437,"Doug ","Resolved","07/14 - CSR shows uptime 1 Hr 03 minutes as of 12:55 PM -"]
["2020-07-17","6MD2204M",{"$f":"_xlfn.IFNA(INDEX(#REF!,MATCH('Old Transport'!B74,#REF!,0)),\"\")","v":{"$error":"#REF!"}},{"$f":"_xlfn.IFNA(INDEX(#REF!,MATCH('Old Transport'!B74,#REF!,0)),\"\")","v":{"$error":"#REF!"}},{"$f":"_xlfn.IFNA(INDEX(#REF!,MATCH('Old Transport'!B74,#REF!,0)),\"\")","v":{"$error":"#REF!"}},{"$f":"_xlfn.IFNA(INDEX(#REF!,MATCH('Old Transport'!B74,#REF!,0)),\"\")","v":{"$error":"#REF!"}},"Port Mismatch",28544255,"Gimel ","Resolved","7/17 -Opened up TT for Gimel as follow up, tried remote troubleshooting techniques "]
["2020-07-17","FLB2001A",{"$f":"_xlfn.IFNA(INDEX(#REF!,MATCH('Old Transport'!B75,#REF!,0)),\"\")","v":{"$error":"#REF!"}},{"$f":"_xlfn.IFNA(INDEX(#REF!,MATCH('Old Transport'!B75,#REF!,0)),\"\")","v":{"$error":"#REF!"}},{"$f":"_xlfn.IFNA(INDEX(#REF!,MATCH('Old Transport'!B75,#REF!,0)),\"\")","v":{"$error":"#REF!"}},{"$f":"_xlfn.IFNA(INDEX(#REF!,MATCH('Old Transport'!B75,#REF!,0)),\"\")","v":{"$error":"#REF!"}},"Port Mismatch",28544332,"Abner","Resolved","7/17 -Opened up TT for Abner as follow up, tried remote troubleshooting techniques "]
["2020-07-21","6MD1055H",{"$f":"_xlfn.IFNA(INDEX(#REF!,MATCH('Old Transport'!B76,#REF!,0)),\"\")","v":{"$error":"#REF!"}},{"$f":"_xlfn.IFNA(INDEX(#REF!,MATCH('Old Transport'!B76,#REF!,0)),\"\")","v":{"$error":"#REF!"}},{"$f":"_xlfn.IFNA(INDEX(#REF!,MATCH('Old Transport'!B76,#REF!,0)),\"\")","v":{"$error":"#REF!"}},{"$f":"_xlfn.IFNA(INDEX(#REF!,MATCH('Old Transport'!B76,#REF!,0)),\"\")","v":{"$error":"#REF!"}},"Frame Loss",28598327,"Zapata","Resolved","7/21 - Opened up TT Zapata to replace CSR / CSR rebooting everyday"]
["2020-07-24","6FB1134E",{"$f":"_xlfn.IFNA(INDEX(#REF!,MATCH('Old Transport'!B77,#REF!,0)),\"\")","v":{"$error":"#REF!"}},{"$f":"_xlfn.IFNA(INDEX(#REF!,MATCH('Old Transport'!B77,#REF!,0)),\"\")","v":{"$error":"#REF!"}},{"$f":"_xlfn.IFNA(INDEX(#REF!,MATCH('Old Transport'!B77,#REF!,0)),\"\")","v":{"$error":"#REF!"}},{"$f":"_xlfn.IFNA(INDEX(#REF!,MATCH('Old Transport'!B77,#REF!,0)),\"\")","v":{"$error":"#REF!"}},"Frame Loss",28641798,"`Steven ","Resolved","07/23 - CCF replaced a bad filter on the ring at 7 pm "]
["2020-07-24","6FB1165A",{"$f":"_xlfn.IFNA(INDEX(#REF!,MATCH('Old Transport'!B78,#REF!,0)),\"\")","v":{"$error":"#REF!"}},{"$f":"_xlfn.IFNA(INDEX(#REF!,MATCH('Old Transport'!B78,#REF!,0)),\"\")","v":{"$error":"#REF!"}},{"$f":"_xlfn.IFNA(INDEX(#REF!,MATCH('Old Transport'!B78,#REF!,0)),\"\")","v":{"$error":"#REF!"}},{"$f":"_xlfn.IFNA(INDEX(#REF!,MATCH('Old Transport'!B78,#REF!,0)),\"\")","v":{"$error":"#REF!"}},"Frame Loss",28641798,"`Steven ","Resolved","07/23 - CCF replaced a bad filter on the ring at 7 pm "]
["2020-07-24","FLB1101A",{"$f":"_xlfn.IFNA(INDEX(#REF!,MATCH('Old Transport'!B79,#REF!,0)),\"\")","v":{"$error":"#REF!"}},{"$f":"_xlfn.IFNA(INDEX(#REF!,MATCH('Old Transport'!B79,#REF!,0)),\"\")","v":{"$error":"#REF!"}},{"$f":"_xlfn.IFNA(INDEX(#REF!,MATCH('Old Transport'!B79,#REF!,0)),\"\")","v":{"$error":"#REF!"}},{"$f":"_xlfn.IFNA(INDEX(#REF!,MATCH('Old Transport'!B79,#REF!,0)),\"\")","v":{"$error":"#REF!"}},"Frame Loss",28641798,"`Steven ","Resolved","07/23 - CCF replaced a bad filter on the ring at 7 pm "]
["2020-07-24","6FM1015A",{"$f":"_xlfn.IFNA(INDEX(#REF!,MATCH('Old Transport'!B80,#REF!,0)),\"\")","v":{"$error":"#REF!"}},{"$f":"_xlfn.IFNA(INDEX(#REF!,MATCH('Old Transport'!B80,#REF!,0)),\"\")","v":{"$error":"#REF!"}},{"$f":"_xlfn.IFNA(INDEX(#REF!,MATCH('Old Transport'!B80,#REF!,0)),\"\")","v":{"$error":"#REF!"}},{"$f":"_xlfn.IFNA(INDEX(#REF!,MATCH('Old Transport'!B80,#REF!,0)),\"\")","v":{"$error":"#REF!"}},"Frame Loss",28641798,"`Steven ","Resolved","RING 7172- CCF is testing the ring / CCF switch traffic on another SPAN at 7:30 pm "]
["2020-07-24","6FM1136A",{"$f":"_xlfn.IFNA(INDEX(#REF!,MATCH('Old Transport'!B81,#REF!,0)),\"\")","v":{"$error":"#REF!"}},{"$f":"_xlfn.IFNA(INDEX(#REF!,MATCH('Old Transport'!B81,#REF!,0)),\"\")","v":{"$error":"#REF!"}},{"$f":"_xlfn.IFNA(INDEX(#REF!,MATCH('Old Transport'!B81,#REF!,0)),\"\")","v":{"$error":"#REF!"}},{"$f":"_xlfn.IFNA(INDEX(#REF!,MATCH('Old Transport'!B81,#REF!,0)),\"\")","v":{"$error":"#REF!"}},"Frame Loss",28641798,"`Steven ","Resolved","RING 7172- CCF is testing the ring / CCF switch traffic on another SPAN at 7:30 pm "]
["2020-07-27","FLB2001A",{"$f":"_xlfn.IFNA(INDEX(#REF!,MATCH('Old Transport'!B82,#REF!,0)),\"\")","v":{"$error":"#REF!"}},{"$f":"_xlfn.IFNA(INDEX(#REF!,MATCH('Old Transport'!B82,#REF!,0)),\"\")","v":{"$error":"#REF!"}},{"$f":"_xlfn.IFNA(INDEX(#REF!,MATCH('Old Transport'!B82,#REF!,0)),\"\")","v":{"$error":"#REF!"}},{"$f":"_xlfn.IFNA(INDEX(#REF!,MATCH('Old Transport'!B82,#REF!,0)),\"\")","v":{"$error":"#REF!"}},"Port Mismatch",28544332,"Rees","Resolved","7/27 - Port 1/1/6 mismatch Mismatch on report - Spoke with Abner same issue from 7/17 , he is going today to fix - SFP replaced to resolve"]
["2020-07-30","6MD1041G",{"$f":"_xlfn.IFNA(INDEX(#REF!,MATCH('Old Transport'!B83,#REF!,0)),\"\")","v":{"$error":"#REF!"}},{"$f":"_xlfn.IFNA(INDEX(#REF!,MATCH('Old Transport'!B83,#REF!,0)),\"\")","v":{"$error":"#REF!"}},{"$f":"_xlfn.IFNA(INDEX(#REF!,MATCH('Old Transport'!B83,#REF!,0)),\"\")","v":{"$error":"#REF!"}},{"$f":"_xlfn.IFNA(INDEX(#REF!,MATCH('Old Transport'!B83,#REF!,0)),\"\")","v":{"$error":"#REF!"}},"Frame Loss",28720000,"Steven ","Resolved","07/30 CID taking frame loss for the past 2 days / Ticket created with CCF / 20315616 (CCF power issue)"]
["2020-07-30","6FB1103B",{"$f":"_xlfn.IFNA(INDEX(#REF!,MATCH('Old Transport'!B84,#REF!,0)),\"\")","v":{"$error":"#REF!"}},{"$f":"_xlfn.IFNA(INDEX(#REF!,MATCH('Old Transport'!B84,#REF!,0)),\"\")","v":{"$error":"#REF!"}},{"$f":"_xlfn.IFNA(INDEX(#REF!,MATCH('Old Transport'!B84,#REF!,0)),\"\")","v":{"$error":"#REF!"}},{"$f":"_xlfn.IFNA(INDEX(#REF!,MATCH('Old Transport'!B84,#REF!,0)),\"\")","v":{"$error":"#REF!"}},"Port Mismatch",28720555,"kerwin ","Resolved","07/30 - Port 1/1/7 Mismatch on report - Spoke with Kerwin "]
["2020-08-05","6FM1001A",{"$f":"_xlfn.IFNA(INDEX(#REF!,MATCH('Old Transport'!B85,#REF!,0)),\"\")","v":{"$error":"#REF!"}},{"$f":"_xlfn.IFNA(INDEX(#REF!,MATCH('Old Transport'!B85,#REF!,0)),\"\")","v":{"$error":"#REF!"}},{"$f":"_xlfn.IFNA(INDEX(#REF!,MATCH('Old Transport'!B85,#REF!,0)),\"\")","v":{"$error":"#REF!"}},{"$f":"_xlfn.IFNA(INDEX(#REF!,MATCH('Old Transport'!B85,#REF!,0)),\"\")","v":{"$error":"#REF!"}},"Frame Loss",28814540,"Steven ","Resolved","08/05 - Created a TT with CCF for ring M7167 (6FM1046B, 6FM1113C, 6NC1013A, 6FM1003A, 6NC1020A, 6NC1076A, 6NC1107M,6FM1001A, 6FM1010A, .....)CCF bad FIBER repaired "]
["2020-08-10","6MM1216A",{"$f":"_xlfn.IFNA(INDEX(#REF!,MATCH('Old Transport'!B86,#REF!,0)),\"\")","v":{"$error":"#REF!"}},{"$f":"_xlfn.IFNA(INDEX(#REF!,MATCH('Old Transport'!B86,#REF!,0)),\"\")","v":{"$error":"#REF!"}},{"$f":"_xlfn.IFNA(INDEX(#REF!,MATCH('Old Transport'!B86,#REF!,0)),\"\")","v":{"$error":"#REF!"}},{"$f":"_xlfn.IFNA(INDEX(#REF!,MATCH('Old Transport'!B86,#REF!,0)),\"\")","v":{"$error":"#REF!"}},"Frame Loss",28882131,"Steven ","Resolved","08/07 - Created TT with ATT, Cienna box has an amber light as per Baron - on 08/17 transfered to Jan for chronic issues"]
["2020-08-10","6FM1020A",{"$f":"_xlfn.IFNA(INDEX(#REF!,MATCH('Old Transport'!B87,#REF!,0)),\"\")","v":{"$error":"#REF!"}},{"$f":"_xlfn.IFNA(INDEX(#REF!,MATCH('Old Transport'!B87,#REF!,0)),\"\")","v":{"$error":"#REF!"}},{"$f":"_xlfn.IFNA(INDEX(#REF!,MATCH('Old Transport'!B87,#REF!,0)),\"\")","v":{"$error":"#REF!"}},{"$f":"_xlfn.IFNA(INDEX(#REF!,MATCH('Old Transport'!B87,#REF!,0)),\"\")","v":{"$error":"#REF!"}},"CSR rebooting ",28882705,"Steven ","Resolved","08/10 - Spoke with Joe , he will check on the router and update me....CSR rebooting for the past days / Joe replaced router ...."]
["2020-08-18","6FB1136D",{"$f":"_xlfn.IFNA(INDEX(#REF!,MATCH('Old Transport'!B88,#REF!,0)),\"\")","v":{"$error":"#REF!"}},{"$f":"_xlfn.IFNA(INDEX(#REF!,MATCH('Old Transport'!B88,#REF!,0)),\"\")","v":{"$error":"#REF!"}},{"$f":"_xlfn.IFNA(INDEX(#REF!,MATCH('Old Transport'!B88,#REF!,0)),\"\")","v":{"$error":"#REF!"}},{"$f":"_xlfn.IFNA(INDEX(#REF!,MATCH('Old Transport'!B88,#REF!,0)),\"\")","v":{"$error":"#REF!"}},"Frame Loss",29014297,"Steven ","Resolved","08/19 - Created a TT with CCF - Gimel replaced SFB and cleaned Fibers on 08/18 - "]
["2020-08-21","FL0111WA",{"$f":"_xlfn.IFNA(INDEX(#REF!,MATCH('Old Transport'!B89,#REF!,0)),\"\")","v":{"$error":"#REF!"}},{"$f":"_xlfn.IFNA(INDEX(#REF!,MATCH('Old Transport'!B89,#REF!,0)),\"\")","v":{"$error":"#REF!"}},{"$f":"_xlfn.IFNA(INDEX(#REF!,MATCH('Old Transport'!B89,#REF!,0)),\"\")","v":{"$error":"#REF!"}},{"$f":"_xlfn.IFNA(INDEX(#REF!,MATCH('Old Transport'!B89,#REF!,0)),\"\")","v":{"$error":"#REF!"}},"Frame Loss",null,null,"Resolved","08/21  - FOPS was on site and fixed all cabling / still seeing Frame loss - need to dispatch ComCast "]
["2020-09-24","6FB1068C",29612307,"FPL",null,null,"Power Outage",null,"2020-09-24","Resolved","FPL power outage"]
["2020-09-25","6MD2264A",29632962,null,null,null,"Power Outage",null,null,"Resolved","ETR 04:45 PM "]
["2020-09-25","6MD1268A",29634203,null,null,null,"Power Outage",null,null,"Resolved","Power outage / etr 9:15 PM"]
["2020-10-07","6NC1115A",29787572,"TMobile",null,null,"Microwave Issue","Ruben ","2020-10-07","Resolved","Microwave site bouncing due to wrong software / FOPS informed and will update TT (Ruben)"]
["2020-10-08","6MD1644",29808060,"TMobile",null,null,"Long Duration Outage",null,null,"Resolved","FPL OUTAGE "]
["2020-10-13","6FM1217M",29872729,{"$f":"_xlfn.IFNA(INDEX(#REF!,MATCH('Old Transport'!B95,#REF!,0)),\"\")","v":{"$error":"#REF!"}},{"$f":"_xlfn.IFNA(INDEX(#REF!,MATCH('Old Transport'!B95,#REF!,0)),\"\")","v":{"$error":"#REF!"}},{"$f":"_xlfn.IFNA(INDEX(#REF!,MATCH('Old Transport'!B95,#REF!,0)),\"\")","v":{"$error":"#REF!"}},"Power Outage",null,"2020-10-13","Resolved","FPL outage ETR 5:15 PM "]
["2020-10-16","6MD1130H",{"$f":"_xlfn.IFNA(INDEX(#REF!,MATCH('Old Transport'!B96,#REF!,0)),\"\")","v":{"$error":"#REF!"}},{"$f":"_xlfn.IFNA(INDEX(#REF!,MATCH('Old Transport'!B96,#REF!,0)),\"\")","v":{"$error":"#REF!"}},{"$f":"_xlfn.IFNA(INDEX(#REF!,MATCH('Old Transport'!B96,#REF!,0)),\"\")","v":{"$error":"#REF!"}},{"$f":"_xlfn.IFNA(INDEX(#REF!,MATCH('Old Transport'!B96,#REF!,0)),\"\")","v":{"$error":"#REF!"}},"Power Outage",null,"2020-10-16","Resolved","FPL Power Outage ETR 10:30 PM "]
["2020-10-16","6MD1268A",{"$f":"_xlfn.IFNA(INDEX(#REF!,MATCH('Old Transport'!B97,#REF!,0)),\"\")","v":{"$error":"#REF!"}},{"$f":"_xlfn.IFNA(INDEX(#REF!,MATCH('Old Transport'!B97,#REF!,0)),\"\")","v":{"$error":"#REF!"}},{"$f":"_xlfn.IFNA(INDEX(#REF!,MATCH('Old Transport'!B97,#REF!,0)),\"\")","v":{"$error":"#REF!"}},{"$f":"_xlfn.IFNA(INDEX(#REF!,MATCH('Old Transport'!B97,#REF!,0)),\"\")","v":{"$error":"#REF!"}},"power Outage ",null,"2020-10-16","Resolved","FPL Power Outage ETR 11:45 pm  PM "]
["2020-10-19","6WP1108A",{"$f":"_xlfn.IFNA(INDEX(#REF!,MATCH('Old Transport'!B98,#REF!,0)),\"\")","v":{"$error":"#REF!"}},{"$f":"_xlfn.IFNA(INDEX(#REF!,MATCH('Old Transport'!B98,#REF!,0)),\"\")","v":{"$error":"#REF!"}},{"$f":"_xlfn.IFNA(INDEX(#REF!,MATCH('Old Transport'!B98,#REF!,0)),\"\")","v":{"$error":"#REF!"}},{"$f":"_xlfn.IFNA(INDEX(#REF!,MATCH('Old Transport'!B98,#REF!,0)),\"\")","v":{"$error":"#REF!"}},"CSR rebooting ",null,"2020-10-19","Resolved","FOPS en route "]
["2020-10-19","A2P0021A",{"$f":"_xlfn.IFNA(INDEX(#REF!,MATCH('Old Transport'!B99,#REF!,0)),\"\")","v":{"$error":"#REF!"}},{"$f":"_xlfn.IFNA(INDEX(#REF!,MATCH('Old Transport'!B99,#REF!,0)),\"\")","v":{"$error":"#REF!"}},{"$f":"_xlfn.IFNA(INDEX(#REF!,MATCH('Old Transport'!B99,#REF!,0)),\"\")","v":{"$error":"#REF!"}},{"$f":"_xlfn.IFNA(INDEX(#REF!,MATCH('Old Transport'!B99,#REF!,0)),\"\")","v":{"$error":"#REF!"}},"POwer Outage",null,"2020-10-19","Resolved","ETR 02:00 PM "]
[null,null,{"$f":"_xlfn.IFNA(INDEX(#REF!,MATCH('Old Transport'!B100,#REF!,0)),\"\")","v":{"$error":"#REF!"}},{"$f":"_xlfn.IFNA(INDEX(#REF!,MATCH('Old Transport'!B100,#REF!,0)),\"\")","v":{"$error":"#REF!"}},{"$f":"_xlfn.IFNA(INDEX(#REF!,MATCH('Old Transport'!B100,#REF!,0)),\"\")","v":{"$error":"#REF!"}},{"$f":"_xlfn.IFNA(INDEX(#REF!,MATCH('Old Transport'!B100,#REF!,0)),\"\")","v":{"$error":"#REF!"}}]
[null,null,{"$f":"_xlfn.IFNA(INDEX(#REF!,MATCH('Old Transport'!B101,#REF!,0)),\"\")","v":{"$error":"#REF!"}},{"$f":"_xlfn.IFNA(INDEX(#REF!,MATCH('Old Transport'!B101,#REF!,0)),\"\")","v":{"$error":"#REF!"}},{"$f":"_xlfn.IFNA(INDEX(#REF!,MATCH('Old Transport'!B101,#REF!,0)),\"\")","v":{"$error":"#REF!"}},{"$f":"_xlfn.IFNA(INDEX(#REF!,MATCH('Old Transport'!B101,#REF!,0)),\"\")","v":{"$error":"#REF!"}}]
[null,null,{"$f":"_xlfn.IFNA(INDEX(#REF!,MATCH('Old Transport'!B102,#REF!,0)),\"\")","v":{"$error":"#REF!"}},{"$f":"_xlfn.IFNA(INDEX(#REF!,MATCH('Old Transport'!B102,#REF!,0)),\"\")","v":{"$error":"#REF!"}},{"$f":"_xlfn.IFNA(INDEX(#REF!,MATCH('Old Transport'!B102,#REF!,0)),\"\")","v":{"$error":"#REF!"}},{"$f":"_xlfn.IFNA(INDEX(#REF!,MATCH('Old Transport'!B102,#REF!,0)),\"\")","v":{"$error":"#REF!"}}]
[null,null,{"$f":"_xlfn.IFNA(INDEX(#REF!,MATCH('Old Transport'!B103,#REF!,0)),\"\")","v":{"$error":"#REF!"}},{"$f":"_xlfn.IFNA(INDEX(#REF!,MATCH('Old Transport'!B103,#REF!,0)),\"\")","v":{"$error":"#REF!"}},{"$f":"_xlfn.IFNA(INDEX(#REF!,MATCH('Old Transport'!B103,#REF!,0)),\"\")","v":{"$error":"#REF!"}},{"$f":"_xlfn.IFNA(INDEX(#REF!,MATCH('Old Transport'!B103,#REF!,0)),\"\")","v":{"$error":"#REF!"}}]
[null,null,{"$f":"_xlfn.IFNA(INDEX(#REF!,MATCH('Old Transport'!B104,#REF!,0)),\"\")","v":{"$error":"#REF!"}},{"$f":"_xlfn.IFNA(INDEX(#REF!,MATCH('Old Transport'!B104,#REF!,0)),\"\")","v":{"$error":"#REF!"}},{"$f":"_xlfn.IFNA(INDEX(#REF!,MATCH('Old Transport'!B104,#REF!,0)),\"\")","v":{"$error":"#REF!"}},{"$f":"_xlfn.IFNA(INDEX(#REF!,MATCH('Old Transport'!B104,#REF!,0)),\"\")","v":{"$error":"#REF!"}}]
[null,null,{"$f":"_xlfn.IFNA(INDEX(#REF!,MATCH('Old Transport'!B105,#REF!,0)),\"\")","v":{"$error":"#REF!"}},{"$f":"_xlfn.IFNA(INDEX(#REF!,MATCH('Old Transport'!B105,#REF!,0)),\"\")","v":{"$error":"#REF!"}},{"$f":"_xlfn.IFNA(INDEX(#REF!,MATCH('Old Transport'!B105,#REF!,0)),\"\")","v":{"$error":"#REF!"}},{"$f":"_xlfn.IFNA(INDEX(#REF!,MATCH('Old Transport'!B105,#REF!,0)),\"\")","v":{"$error":"#REF!"}}]
[null,null,{"$f":"_xlfn.IFNA(INDEX(#REF!,MATCH('Old Transport'!B106,#REF!,0)),\"\")","v":{"$error":"#REF!"}},{"$f":"_xlfn.IFNA(INDEX(#REF!,MATCH('Old Transport'!B106,#REF!,0)),\"\")","v":{"$error":"#REF!"}},{"$f":"_xlfn.IFNA(INDEX(#REF!,MATCH('Old Transport'!B106,#REF!,0)),\"\")","v":{"$error":"#REF!"}},{"$f":"_xlfn.IFNA(INDEX(#REF!,MATCH('Old Transport'!B106,#REF!,0)),\"\")","v":{"$error":"#REF!"}}]
[null,null,{"$f":"_xlfn.IFNA(INDEX(#REF!,MATCH('Old Transport'!B107,#REF!,0)),\"\")","v":{"$error":"#REF!"}},{"$f":"_xlfn.IFNA(INDEX(#REF!,MATCH('Old Transport'!B107,#REF!,0)),\"\")","v":{"$error":"#REF!"}},{"$f":"_xlfn.IFNA(INDEX(#REF!,MATCH('Old Transport'!B107,#REF!,0)),\"\")","v":{"$error":"#REF!"}},{"$f":"_xlfn.IFNA(INDEX(#REF!,MATCH('Old Transport'!B107,#REF!,0)),\"\")","v":{"$error":"#REF!"}}]
[null,null,{"$f":"_xlfn.IFNA(INDEX(#REF!,MATCH('Old Transport'!B108,#REF!,0)),\"\")","v":{"$error":"#REF!"}},{"$f":"_xlfn.IFNA(INDEX(#REF!,MATCH('Old Transport'!B108,#REF!,0)),\"\")","v":{"$error":"#REF!"}},{"$f":"_xlfn.IFNA(INDEX(#REF!,MATCH('Old Transport'!B108,#REF!,0)),\"\")","v":{"$error":"#REF!"}},{"$f":"_xlfn.IFNA(INDEX(#REF!,MATCH('Old Transport'!B108,#REF!,0)),\"\")","v":{"$error":"#REF!"}}]
[null,null,{"$f":"_xlfn.IFNA(INDEX(#REF!,MATCH('Old Transport'!B109,#REF!,0)),\"\")","v":{"$error":"#REF!"}},{"$f":"_xlfn.IFNA(INDEX(#REF!,MATCH('Old Transport'!B109,#REF!,0)),\"\")","v":{"$error":"#REF!"}},{"$f":"_xlfn.IFNA(INDEX(#REF!,MATCH('Old Transport'!B109,#REF!,0)),\"\")","v":{"$error":"#REF!"}},{"$f":"_xlfn.IFNA(INDEX(#REF!,MATCH('Old Transport'!B109,#REF!,0)),\"\")","v":{"$error":"#REF!"}}]
[null,null,{"$f":"_xlfn.IFNA(INDEX(#REF!,MATCH('Old Transport'!B110,#REF!,0)),\"\")","v":{"$error":"#REF!"}},{"$f":"_xlfn.IFNA(INDEX(#REF!,MATCH('Old Transport'!B110,#REF!,0)),\"\")","v":{"$error":"#REF!"}},{"$f":"_xlfn.IFNA(INDEX(#REF!,MATCH('Old Transport'!B110,#REF!,0)),\"\")","v":{"$error":"#REF!"}},{"$f":"_xlfn.IFNA(INDEX(#REF!,MATCH('Old Transport'!B110,#REF!,0)),\"\")","v":{"$error":"#REF!"}}]
[null,null,{"$f":"_xlfn.IFNA(INDEX(#REF!,MATCH('Old Transport'!B111,#REF!,0)),\"\")","v":{"$error":"#REF!"}},{"$f":"_xlfn.IFNA(INDEX(#REF!,MATCH('Old Transport'!B111,#REF!,0)),\"\")","v":{"$error":"#REF!"}},{"$f":"_xlfn.IFNA(INDEX(#REF!,MATCH('Old Transport'!B111,#REF!,0)),\"\")","v":{"$error":"#REF!"}},{"$f":"_xlfn.IFNA(INDEX(#REF!,MATCH('Old Transport'!B111,#REF!,0)),\"\")","v":{"$error":"#REF!"}}]
[null,null,{"$f":"_xlfn.IFNA(INDEX(#REF!,MATCH('Old Transport'!B112,#REF!,0)),\"\")","v":{"$error":"#REF!"}},{"$f":"_xlfn.IFNA(INDEX(#REF!,MATCH('Old Transport'!B112,#REF!,0)),\"\")","v":{"$error":"#REF!"}},{"$f":"_xlfn.IFNA(INDEX(#REF!,MATCH('Old Transport'!B112,#REF!,0)),\"\")","v":{"$error":"#REF!"}},{"$f":"_xlfn.IFNA(INDEX(#REF!,MATCH('Old Transport'!B112,#REF!,0)),\"\")","v":{"$error":"#REF!"}}]
[null,null,{"$f":"_xlfn.IFNA(INDEX(#REF!,MATCH('Old Transport'!B113,#REF!,0)),\"\")","v":{"$error":"#REF!"}},{"$f":"_xlfn.IFNA(INDEX(#REF!,MATCH('Old Transport'!B113,#REF!,0)),\"\")","v":{"$error":"#REF!"}},{"$f":"_xlfn.IFNA(INDEX(#REF!,MATCH('Old Transport'!B113,#REF!,0)),\"\")","v":{"$error":"#REF!"}},{"$f":"_xlfn.IFNA(INDEX(#REF!,MATCH('Old Transport'!B113,#REF!,0)),\"\")","v":{"$error":"#REF!"}}]
[null,null,{"$f":"_xlfn.IFNA(INDEX(#REF!,MATCH('Old Transport'!B114,#REF!,0)),\"\")","v":{"$error":"#REF!"}},{"$f":"_xlfn.IFNA(INDEX(#REF!,MATCH('Old Transport'!B114,#REF!,0)),\"\")","v":{"$error":"#REF!"}},{"$f":"_xlfn.IFNA(INDEX(#REF!,MATCH('Old Transport'!B114,#REF!,0)),\"\")","v":{"$error":"#REF!"}},{"$f":"_xlfn.IFNA(INDEX(#REF!,MATCH('Old Transport'!B114,#REF!,0)),\"\")","v":{"$error":"#REF!"}}]
[null,null,{"$f":"_xlfn.IFNA(INDEX(#REF!,MATCH('Old Transport'!B115,#REF!,0)),\"\")","v":{"$error":"#REF!"}},{"$f":"_xlfn.IFNA(INDEX(#REF!,MATCH('Old Transport'!B115,#REF!,0)),\"\")","v":{"$error":"#REF!"}},{"$f":"_xlfn.IFNA(INDEX(#REF!,MATCH('Old Transport'!B115,#REF!,0)),\"\")","v":{"$error":"#REF!"}},{"$f":"_xlfn.IFNA(INDEX(#REF!,MATCH('Old Transport'!B115,#REF!,0)),\"\")","v":{"$error":"#REF!"}}]
[null,null,{"$f":"_xlfn.IFNA(INDEX(#REF!,MATCH('Old Transport'!B116,#REF!,0)),\"\")","v":{"$error":"#REF!"}},{"$f":"_xlfn.IFNA(INDEX(#REF!,MATCH('Old Transport'!B116,#REF!,0)),\"\")","v":{"$error":"#REF!"}},{"$f":"_xlfn.IFNA(INDEX(#REF!,MATCH('Old Transport'!B116,#REF!,0)),\"\")","v":{"$error":"#REF!"}},{"$f":"_xlfn.IFNA(INDEX(#REF!,MATCH('Old Transport'!B116,#REF!,0)),\"\")","v":{"$error":"#REF!"}}]
[null,null,{"$f":"_xlfn.IFNA(INDEX(#REF!,MATCH('Old Transport'!B117,#REF!,0)),\"\")","v":{"$error":"#REF!"}},{"$f":"_xlfn.IFNA(INDEX(#REF!,MATCH('Old Transport'!B117,#REF!,0)),\"\")","v":{"$error":"#REF!"}},{"$f":"_xlfn.IFNA(INDEX(#REF!,MATCH('Old Transport'!B117,#REF!,0)),\"\")","v":{"$error":"#REF!"}},{"$f":"_xlfn.IFNA(INDEX(#REF!,MATCH('Old Transport'!B117,#REF!,0)),\"\")","v":{"$error":"#REF!"}}]
[null,null,{"$f":"_xlfn.IFNA(INDEX(#REF!,MATCH('Old Transport'!B118,#REF!,0)),\"\")","v":{"$error":"#REF!"}},{"$f":"_xlfn.IFNA(INDEX(#REF!,MATCH('Old Transport'!B118,#REF!,0)),\"\")","v":{"$error":"#REF!"}},{"$f":"_xlfn.IFNA(INDEX(#REF!,MATCH('Old Transport'!B118,#REF!,0)),\"\")","v":{"$error":"#REF!"}},{"$f":"_xlfn.IFNA(INDEX(#REF!,MATCH('Old Transport'!B118,#REF!,0)),\"\")","v":{"$error":"#REF!"}}]
[null,null,{"$f":"_xlfn.IFNA(INDEX(#REF!,MATCH('Old Transport'!B119,#REF!,0)),\"\")","v":{"$error":"#REF!"}},{"$f":"_xlfn.IFNA(INDEX(#REF!,MATCH('Old Transport'!B119,#REF!,0)),\"\")","v":{"$error":"#REF!"}},{"$f":"_xlfn.IFNA(INDEX(#REF!,MATCH('Old Transport'!B119,#REF!,0)),\"\")","v":{"$error":"#REF!"}},{"$f":"_xlfn.IFNA(INDEX(#REF!,MATCH('Old Transport'!B119,#REF!,0)),\"\")","v":{"$error":"#REF!"}}]
[null,null,{"$f":"_xlfn.IFNA(INDEX(#REF!,MATCH('Old Transport'!B120,#REF!,0)),\"\")","v":{"$error":"#REF!"}},{"$f":"_xlfn.IFNA(INDEX(#REF!,MATCH('Old Transport'!B120,#REF!,0)),\"\")","v":{"$error":"#REF!"}},{"$f":"_xlfn.IFNA(INDEX(#REF!,MATCH('Old Transport'!B120,#REF!,0)),\"\")","v":{"$error":"#REF!"}},{"$f":"_xlfn.IFNA(INDEX(#REF!,MATCH('Old Transport'!B120,#REF!,0)),\"\")","v":{"$error":"#REF!"}}]
[null,null,{"$f":"_xlfn.IFNA(INDEX(#REF!,MATCH('Old Transport'!B121,#REF!,0)),\"\")","v":{"$error":"#REF!"}},{"$f":"_xlfn.IFNA(INDEX(#REF!,MATCH('Old Transport'!B121,#REF!,0)),\"\")","v":{"$error":"#REF!"}},{"$f":"_xlfn.IFNA(INDEX(#REF!,MATCH('Old Transport'!B121,#REF!,0)),\"\")","v":{"$error":"#REF!"}},{"$f":"_xlfn.IFNA(INDEX(#REF!,MATCH('Old Transport'!B121,#REF!,0)),\"\")","v":{"$error":"#REF!"}}]
[null,null,{"$f":"_xlfn.IFNA(INDEX(#REF!,MATCH('Old Transport'!B122,#REF!,0)),\"\")","v":{"$error":"#REF!"}},{"$f":"_xlfn.IFNA(INDEX(#REF!,MATCH('Old Transport'!B122,#REF!,0)),\"\")","v":{"$error":"#REF!"}},{"$f":"_xlfn.IFNA(INDEX(#REF!,MATCH('Old Transport'!B122,#REF!,0)),\"\")","v":{"$error":"#REF!"}},{"$f":"_xlfn.IFNA(INDEX(#REF!,MATCH('Old Transport'!B122,#REF!,0)),\"\")","v":{"$error":"#REF!"}}]
[null,null,{"$f":"_xlfn.IFNA(INDEX(#REF!,MATCH('Old Transport'!B123,#REF!,0)),\"\")","v":{"$error":"#REF!"}},{"$f":"_xlfn.IFNA(INDEX(#REF!,MATCH('Old Transport'!B123,#REF!,0)),\"\")","v":{"$error":"#REF!"}},{"$f":"_xlfn.IFNA(INDEX(#REF!,MATCH('Old Transport'!B123,#REF!,0)),\"\")","v":{"$error":"#REF!"}},{"$f":"_xlfn.IFNA(INDEX(#REF!,MATCH('Old Transport'!B123,#REF!,0)),\"\")","v":{"$error":"#REF!"}}]
[null,null,{"$f":"_xlfn.IFNA(INDEX(#REF!,MATCH('Old Transport'!B124,#REF!,0)),\"\")","v":{"$error":"#REF!"}},{"$f":"_xlfn.IFNA(INDEX(#REF!,MATCH('Old Transport'!B124,#REF!,0)),\"\")","v":{"$error":"#REF!"}},{"$f":"_xlfn.IFNA(INDEX(#REF!,MATCH('Old Transport'!B124,#REF!,0)),\"\")","v":{"$error":"#REF!"}},{"$f":"_xlfn.IFNA(INDEX(#REF!,MATCH('Old Transport'!B124,#REF!,0)),\"\")","v":{"$error":"#REF!"}}]
[null,null,{"$f":"_xlfn.IFNA(INDEX(#REF!,MATCH('Old Transport'!B125,#REF!,0)),\"\")","v":{"$error":"#REF!"}},{"$f":"_xlfn.IFNA(INDEX(#REF!,MATCH('Old Transport'!B125,#REF!,0)),\"\")","v":{"$error":"#REF!"}},{"$f":"_xlfn.IFNA(INDEX(#REF!,MATCH('Old Transport'!B125,#REF!,0)),\"\")","v":{"$error":"#REF!"}},{"$f":"_xlfn.IFNA(INDEX(#REF!,MATCH('Old Transport'!B125,#REF!,0)),\"\")","v":{"$error":"#REF!"}}]
[null,null,{"$f":"_xlfn.IFNA(INDEX(#REF!,MATCH('Old Transport'!B126,#REF!,0)),\"\")","v":{"$error":"#REF!"}},{"$f":"_xlfn.IFNA(INDEX(#REF!,MATCH('Old Transport'!B126,#REF!,0)),\"\")","v":{"$error":"#REF!"}},{"$f":"_xlfn.IFNA(INDEX(#REF!,MATCH('Old Transport'!B126,#REF!,0)),\"\")","v":{"$error":"#REF!"}},{"$f":"_xlfn.IFNA(INDEX(#REF!,MATCH('Old Transport'!B126,#REF!,0)),\"\")","v":{"$error":"#REF!"}}]
[null,null,{"$f":"_xlfn.IFNA(INDEX(#REF!,MATCH('Old Transport'!B127,#REF!,0)),\"\")","v":{"$error":"#REF!"}},{"$f":"_xlfn.IFNA(INDEX(#REF!,MATCH('Old Transport'!B127,#REF!,0)),\"\")","v":{"$error":"#REF!"}},{"$f":"_xlfn.IFNA(INDEX(#REF!,MATCH('Old Transport'!B127,#REF!,0)),\"\")","v":{"$error":"#REF!"}},{"$f":"_xlfn.IFNA(INDEX(#REF!,MATCH('Old Transport'!B127,#REF!,0)),\"\")","v":{"$error":"#REF!"}}]
[null,null,{"$f":"_xlfn.IFNA(INDEX(#REF!,MATCH('Old Transport'!B128,#REF!,0)),\"\")","v":{"$error":"#REF!"}},{"$f":"_xlfn.IFNA(INDEX(#REF!,MATCH('Old Transport'!B128,#REF!,0)),\"\")","v":{"$error":"#REF!"}},{"$f":"_xlfn.IFNA(INDEX(#REF!,MATCH('Old Transport'!B128,#REF!,0)),\"\")","v":{"$error":"#REF!"}},{"$f":"_xlfn.IFNA(INDEX(#REF!,MATCH('Old Transport'!B128,#REF!,0)),\"\")","v":{"$error":"#REF!"}}]
[null,null,{"$f":"_xlfn.IFNA(INDEX(#REF!,MATCH('Old Transport'!B129,#REF!,0)),\"\")","v":{"$error":"#REF!"}},{"$f":"_xlfn.IFNA(INDEX(#REF!,MATCH('Old Transport'!B129,#REF!,0)),\"\")","v":{"$error":"#REF!"}},{"$f":"_xlfn.IFNA(INDEX(#REF!,MATCH('Old Transport'!B129,#REF!,0)),\"\")","v":{"$error":"#REF!"}},{"$f":"_xlfn.IFNA(INDEX(#REF!,MATCH('Old Transport'!B129,#REF!,0)),\"\")","v":{"$error":"#REF!"}}]
[null,null,{"$f":"_xlfn.IFNA(INDEX(#REF!,MATCH('Old Transport'!B130,#REF!,0)),\"\")","v":{"$error":"#REF!"}},{"$f":"_xlfn.IFNA(INDEX(#REF!,MATCH('Old Transport'!B130,#REF!,0)),\"\")","v":{"$error":"#REF!"}},{"$f":"_xlfn.IFNA(INDEX(#REF!,MATCH('Old Transport'!B130,#REF!,0)),\"\")","v":{"$error":"#REF!"}},{"$f":"_xlfn.IFNA(INDEX(#REF!,MATCH('Old Transport'!B130,#REF!,0)),\"\")","v":{"$error":"#REF!"}}]
[null,null,{"$f":"_xlfn.IFNA(INDEX(#REF!,MATCH('Old Transport'!B131,#REF!,0)),\"\")","v":{"$error":"#REF!"}},{"$f":"_xlfn.IFNA(INDEX(#REF!,MATCH('Old Transport'!B131,#REF!,0)),\"\")","v":{"$error":"#REF!"}},{"$f":"_xlfn.IFNA(INDEX(#REF!,MATCH('Old Transport'!B131,#REF!,0)),\"\")","v":{"$error":"#REF!"}},{"$f":"_xlfn.IFNA(INDEX(#REF!,MATCH('Old Transport'!B131,#REF!,0)),\"\")","v":{"$error":"#REF!"}}]
[null,null,{"$f":"_xlfn.IFNA(INDEX(#REF!,MATCH('Old Transport'!B132,#REF!,0)),\"\")","v":{"$error":"#REF!"}},{"$f":"_xlfn.IFNA(INDEX(#REF!,MATCH('Old Transport'!B132,#REF!,0)),\"\")","v":{"$error":"#REF!"}},{"$f":"_xlfn.IFNA(INDEX(#REF!,MATCH('Old Transport'!B132,#REF!,0)),\"\")","v":{"$error":"#REF!"}},{"$f":"_xlfn.IFNA(INDEX(#REF!,MATCH('Old Transport'!B132,#REF!,0)),\"\")","v":{"$error":"#REF!"}}]
[null,null,{"$f":"_xlfn.IFNA(INDEX(#REF!,MATCH('Old Transport'!B133,#REF!,0)),\"\")","v":{"$error":"#REF!"}},{"$f":"_xlfn.IFNA(INDEX(#REF!,MATCH('Old Transport'!B133,#REF!,0)),\"\")","v":{"$error":"#REF!"}},{"$f":"_xlfn.IFNA(INDEX(#REF!,MATCH('Old Transport'!B133,#REF!,0)),\"\")","v":{"$error":"#REF!"}},{"$f":"_xlfn.IFNA(INDEX(#REF!,MATCH('Old Transport'!B133,#REF!,0)),\"\")","v":{"$error":"#REF!"}}]
[null,null,{"$f":"_xlfn.IFNA(INDEX(#REF!,MATCH('Old Transport'!B134,#REF!,0)),\"\")","v":{"$error":"#REF!"}},{"$f":"_xlfn.IFNA(INDEX(#REF!,MATCH('Old Transport'!B134,#REF!,0)),\"\")","v":{"$error":"#REF!"}},{"$f":"_xlfn.IFNA(INDEX(#REF!,MATCH('Old Transport'!B134,#REF!,0)),\"\")","v":{"$error":"#REF!"}},{"$f":"_xlfn.IFNA(INDEX(#REF!,MATCH('Old Transport'!B134,#REF!,0)),\"\")","v":{"$error":"#REF!"}}]
[null,null,{"$f":"_xlfn.IFNA(INDEX(#REF!,MATCH('Old Transport'!B135,#REF!,0)),\"\")","v":{"$error":"#REF!"}},{"$f":"_xlfn.IFNA(INDEX(#REF!,MATCH('Old Transport'!B135,#REF!,0)),\"\")","v":{"$error":"#REF!"}},{"$f":"_xlfn.IFNA(INDEX(#REF!,MATCH('Old Transport'!B135,#REF!,0)),\"\")","v":{"$error":"#REF!"}},{"$f":"_xlfn.IFNA(INDEX(#REF!,MATCH('Old Transport'!B135,#REF!,0)),\"\")","v":{"$error":"#REF!"}}]
[null,null,{"$f":"_xlfn.IFNA(INDEX(#REF!,MATCH('Old Transport'!B136,#REF!,0)),\"\")","v":{"$error":"#REF!"}},{"$f":"_xlfn.IFNA(INDEX(#REF!,MATCH('Old Transport'!B136,#REF!,0)),\"\")","v":{"$error":"#REF!"}},{"$f":"_xlfn.IFNA(INDEX(#REF!,MATCH('Old Transport'!B136,#REF!,0)),\"\")","v":{"$error":"#REF!"}},{"$f":"_xlfn.IFNA(INDEX(#REF!,MATCH('Old Transport'!B136,#REF!,0)),\"\")","v":{"$error":"#REF!"}}]
[null,null,{"$f":"_xlfn.IFNA(INDEX(#REF!,MATCH('Old Transport'!B137,#REF!,0)),\"\")","v":{"$error":"#REF!"}},{"$f":"_xlfn.IFNA(INDEX(#REF!,MATCH('Old Transport'!B137,#REF!,0)),\"\")","v":{"$error":"#REF!"}},{"$f":"_xlfn.IFNA(INDEX(#REF!,MATCH('Old Transport'!B137,#REF!,0)),\"\")","v":{"$error":"#REF!"}},{"$f":"_xlfn.IFNA(INDEX(#REF!,MATCH('Old Transport'!B137,#REF!,0)),\"\")","v":{"$error":"#REF!"}}]
[null,null,{"$f":"_xlfn.IFNA(INDEX(#REF!,MATCH('Old Transport'!B138,#REF!,0)),\"\")","v":{"$error":"#REF!"}},{"$f":"_xlfn.IFNA(INDEX(#REF!,MATCH('Old Transport'!B138,#REF!,0)),\"\")","v":{"$error":"#REF!"}},{"$f":"_xlfn.IFNA(INDEX(#REF!,MATCH('Old Transport'!B138,#REF!,0)),\"\")","v":{"$error":"#REF!"}},{"$f":"_xlfn.IFNA(INDEX(#REF!,MATCH('Old Transport'!B138,#REF!,0)),\"\")","v":{"$error":"#REF!"}}]
[null,null,{"$f":"_xlfn.IFNA(INDEX(#REF!,MATCH('Old Transport'!B139,#REF!,0)),\"\")","v":{"$error":"#REF!"}},{"$f":"_xlfn.IFNA(INDEX(#REF!,MATCH('Old Transport'!B139,#REF!,0)),\"\")","v":{"$error":"#REF!"}},{"$f":"_xlfn.IFNA(INDEX(#REF!,MATCH('Old Transport'!B139,#REF!,0)),\"\")","v":{"$error":"#REF!"}},{"$f":"_xlfn.IFNA(INDEX(#REF!,MATCH('Old Transport'!B139,#REF!,0)),\"\")","v":{"$error":"#REF!"}}]
[null,null,{"$f":"_xlfn.IFNA(INDEX(#REF!,MATCH('Old Transport'!B140,#REF!,0)),\"\")","v":{"$error":"#REF!"}},{"$f":"_xlfn.IFNA(INDEX(#REF!,MATCH('Old Transport'!B140,#REF!,0)),\"\")","v":{"$error":"#REF!"}},{"$f":"_xlfn.IFNA(INDEX(#REF!,MATCH('Old Transport'!B140,#REF!,0)),\"\")","v":{"$error":"#REF!"}},{"$f":"_xlfn.IFNA(INDEX(#REF!,MATCH('Old Transport'!B140,#REF!,0)),\"\")","v":{"$error":"#REF!"}}]
[null,null,{"$f":"_xlfn.IFNA(INDEX(#REF!,MATCH('Old Transport'!B141,#REF!,0)),\"\")","v":{"$error":"#REF!"}},{"$f":"_xlfn.IFNA(INDEX(#REF!,MATCH('Old Transport'!B141,#REF!,0)),\"\")","v":{"$error":"#REF!"}},{"$f":"_xlfn.IFNA(INDEX(#REF!,MATCH('Old Transport'!B141,#REF!,0)),\"\")","v":{"$error":"#REF!"}},{"$f":"_xlfn.IFNA(INDEX(#REF!,MATCH('Old Transport'!B141,#REF!,0)),\"\")","v":{"$error":"#REF!"}}]
[null,null,{"$f":"_xlfn.IFNA(INDEX(#REF!,MATCH('Old Transport'!B142,#REF!,0)),\"\")","v":{"$error":"#REF!"}},{"$f":"_xlfn.IFNA(INDEX(#REF!,MATCH('Old Transport'!B142,#REF!,0)),\"\")","v":{"$error":"#REF!"}},{"$f":"_xlfn.IFNA(INDEX(#REF!,MATCH('Old Transport'!B142,#REF!,0)),\"\")","v":{"$error":"#REF!"}},{"$f":"_xlfn.IFNA(INDEX(#REF!,MATCH('Old Transport'!B142,#REF!,0)),\"\")","v":{"$error":"#REF!"}}]
[null,null,{"$f":"_xlfn.IFNA(INDEX(#REF!,MATCH('Old Transport'!B143,#REF!,0)),\"\")","v":{"$error":"#REF!"}},{"$f":"_xlfn.IFNA(INDEX(#REF!,MATCH('Old Transport'!B143,#REF!,0)),\"\")","v":{"$error":"#REF!"}},{"$f":"_xlfn.IFNA(INDEX(#REF!,MATCH('Old Transport'!B143,#REF!,0)),\"\")","v":{"$error":"#REF!"}},{"$f":"_xlfn.IFNA(INDEX(#REF!,MATCH('Old Transport'!B143,#REF!,0)),\"\")","v":{"$error":"#REF!"}}]
[null,null,{"$f":"_xlfn.IFNA(INDEX(#REF!,MATCH('Old Transport'!B144,#REF!,0)),\"\")","v":{"$error":"#REF!"}},{"$f":"_xlfn.IFNA(INDEX(#REF!,MATCH('Old Transport'!B144,#REF!,0)),\"\")","v":{"$error":"#REF!"}},{"$f":"_xlfn.IFNA(INDEX(#REF!,MATCH('Old Transport'!B144,#REF!,0)),\"\")","v":{"$error":"#REF!"}},{"$f":"_xlfn.IFNA(INDEX(#REF!,MATCH('Old Transport'!B144,#REF!,0)),\"\")","v":{"$error":"#REF!"}}]
[null,null,{"$f":"_xlfn.IFNA(INDEX(#REF!,MATCH('Old Transport'!B145,#REF!,0)),\"\")","v":{"$error":"#REF!"}},{"$f":"_xlfn.IFNA(INDEX(#REF!,MATCH('Old Transport'!B145,#REF!,0)),\"\")","v":{"$error":"#REF!"}},{"$f":"_xlfn.IFNA(INDEX(#REF!,MATCH('Old Transport'!B145,#REF!,0)),\"\")","v":{"$error":"#REF!"}},{"$f":"_xlfn.IFNA(INDEX(#REF!,MATCH('Old Transport'!B145,#REF!,0)),\"\")","v":{"$error":"#REF!"}}]
[null,null,{"$f":"_xlfn.IFNA(INDEX(#REF!,MATCH('Old Transport'!B146,#REF!,0)),\"\")","v":{"$error":"#REF!"}},{"$f":"_xlfn.IFNA(INDEX(#REF!,MATCH('Old Transport'!B146,#REF!,0)),\"\")","v":{"$error":"#REF!"}},{"$f":"_xlfn.IFNA(INDEX(#REF!,MATCH('Old Transport'!B146,#REF!,0)),\"\")","v":{"$error":"#REF!"}},{"$f":"_xlfn.IFNA(INDEX(#REF!,MATCH('Old Transport'!B146,#REF!,0)),\"\")","v":{"$error":"#REF!"}}]
[null,null,{"$f":"_xlfn.IFNA(INDEX(#REF!,MATCH('Old Transport'!B147,#REF!,0)),\"\")","v":{"$error":"#REF!"}},{"$f":"_xlfn.IFNA(INDEX(#REF!,MATCH('Old Transport'!B147,#REF!,0)),\"\")","v":{"$error":"#REF!"}},{"$f":"_xlfn.IFNA(INDEX(#REF!,MATCH('Old Transport'!B147,#REF!,0)),\"\")","v":{"$error":"#REF!"}},{"$f":"_xlfn.IFNA(INDEX(#REF!,MATCH('Old Transport'!B147,#REF!,0)),\"\")","v":{"$error":"#REF!"}}]
[null,null,{"$f":"_xlfn.IFNA(INDEX(#REF!,MATCH('Old Transport'!B148,#REF!,0)),\"\")","v":{"$error":"#REF!"}},{"$f":"_xlfn.IFNA(INDEX(#REF!,MATCH('Old Transport'!B148,#REF!,0)),\"\")","v":{"$error":"#REF!"}},{"$f":"_xlfn.IFNA(INDEX(#REF!,MATCH('Old Transport'!B148,#REF!,0)),\"\")","v":{"$error":"#REF!"}},{"$f":"_xlfn.IFNA(INDEX(#REF!,MATCH('Old Transport'!B148,#REF!,0)),\"\")","v":{"$error":"#REF!"}}]
[null,null,{"$f":"_xlfn.IFNA(INDEX(#REF!,MATCH('Old Transport'!B149,#REF!,0)),\"\")","v":{"$error":"#REF!"}},{"$f":"_xlfn.IFNA(INDEX(#REF!,MATCH('Old Transport'!B149,#REF!,0)),\"\")","v":{"$error":"#REF!"}},{"$f":"_xlfn.IFNA(INDEX(#REF!,MATCH('Old Transport'!B149,#REF!,0)),\"\")","v":{"$error":"#REF!"}},{"$f":"_xlfn.IFNA(INDEX(#REF!,MATCH('Old Transport'!B149,#REF!,0)),\"\")","v":{"$error":"#REF!"}}]
[null,null,{"$f":"_xlfn.IFNA(INDEX(#REF!,MATCH('Old Transport'!B150,#REF!,0)),\"\")","v":{"$error":"#REF!"}},{"$f":"_xlfn.IFNA(INDEX(#REF!,MATCH('Old Transport'!B150,#REF!,0)),\"\")","v":{"$error":"#REF!"}},{"$f":"_xlfn.IFNA(INDEX(#REF!,MATCH('Old Transport'!B150,#REF!,0)),\"\")","v":{"$error":"#REF!"}},{"$f":"_xlfn.IFNA(INDEX(#REF!,MATCH('Old Transport'!B150,#REF!,0)),\"\")","v":{"$error":"#REF!"}}]
[null,null,{"$f":"_xlfn.IFNA(INDEX(#REF!,MATCH('Old Transport'!B151,#REF!,0)),\"\")","v":{"$error":"#REF!"}},{"$f":"_xlfn.IFNA(INDEX(#REF!,MATCH('Old Transport'!B151,#REF!,0)),\"\")","v":{"$error":"#REF!"}},{"$f":"_xlfn.IFNA(INDEX(#REF!,MATCH('Old Transport'!B151,#REF!,0)),\"\")","v":{"$error":"#REF!"}},{"$f":"_xlfn.IFNA(INDEX(#REF!,MATCH('Old Transport'!B151,#REF!,0)),\"\")","v":{"$error":"#REF!"}}]
[null,null,{"$f":"_xlfn.IFNA(INDEX(#REF!,MATCH('Old Transport'!B152,#REF!,0)),\"\")","v":{"$error":"#REF!"}},{"$f":"_xlfn.IFNA(INDEX(#REF!,MATCH('Old Transport'!B152,#REF!,0)),\"\")","v":{"$error":"#REF!"}},{"$f":"_xlfn.IFNA(INDEX(#REF!,MATCH('Old Transport'!B152,#REF!,0)),\"\")","v":{"$error":"#REF!"}},{"$f":"_xlfn.IFNA(INDEX(#REF!,MATCH('Old Transport'!B152,#REF!,0)),\"\")","v":{"$error":"#REF!"}}]
[null,null,{"$f":"_xlfn.IFNA(INDEX(#REF!,MATCH('Old Transport'!B153,#REF!,0)),\"\")","v":{"$error":"#REF!"}},{"$f":"_xlfn.IFNA(INDEX(#REF!,MATCH('Old Transport'!B153,#REF!,0)),\"\")","v":{"$error":"#REF!"}},{"$f":"_xlfn.IFNA(INDEX(#REF!,MATCH('Old Transport'!B153,#REF!,0)),\"\")","v":{"$error":"#REF!"}},{"$f":"_xlfn.IFNA(INDEX(#REF!,MATCH('Old Transport'!B153,#REF!,0)),\"\")","v":{"$error":"#REF!"}}]
[null,null,{"$f":"_xlfn.IFNA(INDEX(#REF!,MATCH('Old Transport'!B154,#REF!,0)),\"\")","v":{"$error":"#REF!"}},{"$f":"_xlfn.IFNA(INDEX(#REF!,MATCH('Old Transport'!B154,#REF!,0)),\"\")","v":{"$error":"#REF!"}},{"$f":"_xlfn.IFNA(INDEX(#REF!,MATCH('Old Transport'!B154,#REF!,0)),\"\")","v":{"$error":"#REF!"}},{"$f":"_xlfn.IFNA(INDEX(#REF!,MATCH('Old Transport'!B154,#REF!,0)),\"\")","v":{"$error":"#REF!"}}]
[null,null,{"$f":"_xlfn.IFNA(INDEX(#REF!,MATCH('Old Transport'!B155,#REF!,0)),\"\")","v":{"$error":"#REF!"}},{"$f":"_xlfn.IFNA(INDEX(#REF!,MATCH('Old Transport'!B155,#REF!,0)),\"\")","v":{"$error":"#REF!"}},{"$f":"_xlfn.IFNA(INDEX(#REF!,MATCH('Old Transport'!B155,#REF!,0)),\"\")","v":{"$error":"#REF!"}},{"$f":"_xlfn.IFNA(INDEX(#REF!,MATCH('Old Transport'!B155,#REF!,0)),\"\")","v":{"$error":"#REF!"}}]
[null,null,{"$f":"_xlfn.IFNA(INDEX(#REF!,MATCH('Old Transport'!B156,#REF!,0)),\"\")","v":{"$error":"#REF!"}},{"$f":"_xlfn.IFNA(INDEX(#REF!,MATCH('Old Transport'!B156,#REF!,0)),\"\")","v":{"$error":"#REF!"}},{"$f":"_xlfn.IFNA(INDEX(#REF!,MATCH('Old Transport'!B156,#REF!,0)),\"\")","v":{"$error":"#REF!"}},{"$f":"_xlfn.IFNA(INDEX(#REF!,MATCH('Old Transport'!B156,#REF!,0)),\"\")","v":{"$error":"#REF!"}}]
[null,null,{"$f":"_xlfn.IFNA(INDEX(#REF!,MATCH('Old Transport'!B157,#REF!,0)),\"\")","v":{"$error":"#REF!"}},{"$f":"_xlfn.IFNA(INDEX(#REF!,MATCH('Old Transport'!B157,#REF!,0)),\"\")","v":{"$error":"#REF!"}},{"$f":"_xlfn.IFNA(INDEX(#REF!,MATCH('Old Transport'!B157,#REF!,0)),\"\")","v":{"$error":"#REF!"}},{"$f":"_xlfn.IFNA(INDEX(#REF!,MATCH('Old Transport'!B157,#REF!,0)),\"\")","v":{"$error":"#REF!"}}]
[null,null,{"$f":"_xlfn.IFNA(INDEX(#REF!,MATCH('Old Transport'!B158,#REF!,0)),\"\")","v":{"$error":"#REF!"}},{"$f":"_xlfn.IFNA(INDEX(#REF!,MATCH('Old Transport'!B158,#REF!,0)),\"\")","v":{"$error":"#REF!"}},{"$f":"_xlfn.IFNA(INDEX(#REF!,MATCH('Old Transport'!B158,#REF!,0)),\"\")","v":{"$error":"#REF!"}},{"$f":"_xlfn.IFNA(INDEX(#REF!,MATCH('Old Transport'!B158,#REF!,0)),\"\")","v":{"$error":"#REF!"}}]
[null,null,{"$f":"_xlfn.IFNA(INDEX(#REF!,MATCH('Old Transport'!B159,#REF!,0)),\"\")","v":{"$error":"#REF!"}},{"$f":"_xlfn.IFNA(INDEX(#REF!,MATCH('Old Transport'!B159,#REF!,0)),\"\")","v":{"$error":"#REF!"}},{"$f":"_xlfn.IFNA(INDEX(#REF!,MATCH('Old Transport'!B159,#REF!,0)),\"\")","v":{"$error":"#REF!"}},{"$f":"_xlfn.IFNA(INDEX(#REF!,MATCH('Old Transport'!B159,#REF!,0)),\"\")","v":{"$error":"#REF!"}}]
[null,null,{"$f":"_xlfn.IFNA(INDEX(#REF!,MATCH('Old Transport'!B160,#REF!,0)),\"\")","v":{"$error":"#REF!"}},{"$f":"_xlfn.IFNA(INDEX(#REF!,MATCH('Old Transport'!B160,#REF!,0)),\"\")","v":{"$error":"#REF!"}},{"$f":"_xlfn.IFNA(INDEX(#REF!,MATCH('Old Transport'!B160,#REF!,0)),\"\")","v":{"$error":"#REF!"}},{"$f":"_xlfn.IFNA(INDEX(#REF!,MATCH('Old Transport'!B160,#REF!,0)),\"\")","v":{"$error":"#REF!"}}]
[null,null,{"$f":"_xlfn.IFNA(INDEX(#REF!,MATCH('Old Transport'!B161,#REF!,0)),\"\")","v":{"$error":"#REF!"}},{"$f":"_xlfn.IFNA(INDEX(#REF!,MATCH('Old Transport'!B161,#REF!,0)),\"\")","v":{"$error":"#REF!"}},{"$f":"_xlfn.IFNA(INDEX(#REF!,MATCH('Old Transport'!B161,#REF!,0)),\"\")","v":{"$error":"#REF!"}},{"$f":"_xlfn.IFNA(INDEX(#REF!,MATCH('Old Transport'!B161,#REF!,0)),\"\")","v":{"$error":"#REF!"}}]
[null,null,{"$f":"_xlfn.IFNA(INDEX(#REF!,MATCH('Old Transport'!B162,#REF!,0)),\"\")","v":{"$error":"#REF!"}},{"$f":"_xlfn.IFNA(INDEX(#REF!,MATCH('Old Transport'!B162,#REF!,0)),\"\")","v":{"$error":"#REF!"}},{"$f":"_xlfn.IFNA(INDEX(#REF!,MATCH('Old Transport'!B162,#REF!,0)),\"\")","v":{"$error":"#REF!"}},{"$f":"_xlfn.IFNA(INDEX(#REF!,MATCH('Old Transport'!B162,#REF!,0)),\"\")","v":{"$error":"#REF!"}}]
[null,null,{"$f":"_xlfn.IFNA(INDEX(#REF!,MATCH('Old Transport'!B163,#REF!,0)),\"\")","v":{"$error":"#REF!"}},{"$f":"_xlfn.IFNA(INDEX(#REF!,MATCH('Old Transport'!B163,#REF!,0)),\"\")","v":{"$error":"#REF!"}},{"$f":"_xlfn.IFNA(INDEX(#REF!,MATCH('Old Transport'!B163,#REF!,0)),\"\")","v":{"$error":"#REF!"}},{"$f":"_xlfn.IFNA(INDEX(#REF!,MATCH('Old Transport'!B163,#REF!,0)),\"\")","v":{"$error":"#REF!"}}]
[null,null,{"$f":"_xlfn.IFNA(INDEX(#REF!,MATCH('Old Transport'!B164,#REF!,0)),\"\")","v":{"$error":"#REF!"}},{"$f":"_xlfn.IFNA(INDEX(#REF!,MATCH('Old Transport'!B164,#REF!,0)),\"\")","v":{"$error":"#REF!"}},{"$f":"_xlfn.IFNA(INDEX(#REF!,MATCH('Old Transport'!B164,#REF!,0)),\"\")","v":{"$error":"#REF!"}},{"$f":"_xlfn.IFNA(INDEX(#REF!,MATCH('Old Transport'!B164,#REF!,0)),\"\")","v":{"$error":"#REF!"}}]
[null,null,{"$f":"_xlfn.IFNA(INDEX(#REF!,MATCH('Old Transport'!B165,#REF!,0)),\"\")","v":{"$error":"#REF!"}},{"$f":"_xlfn.IFNA(INDEX(#REF!,MATCH('Old Transport'!B165,#REF!,0)),\"\")","v":{"$error":"#REF!"}},{"$f":"_xlfn.IFNA(INDEX(#REF!,MATCH('Old Transport'!B165,#REF!,0)),\"\")","v":{"$error":"#REF!"}},{"$f":"_xlfn.IFNA(INDEX(#REF!,MATCH('Old Transport'!B165,#REF!,0)),\"\")","v":{"$error":"#REF!"}}]
[null,null,{"$f":"_xlfn.IFNA(INDEX(#REF!,MATCH('Old Transport'!B166,#REF!,0)),\"\")","v":{"$error":"#REF!"}},{"$f":"_xlfn.IFNA(INDEX(#REF!,MATCH('Old Transport'!B166,#REF!,0)),\"\")","v":{"$error":"#REF!"}},{"$f":"_xlfn.IFNA(INDEX(#REF!,MATCH('Old Transport'!B166,#REF!,0)),\"\")","v":{"$error":"#REF!"}},{"$f":"_xlfn.IFNA(INDEX(#REF!,MATCH('Old Transport'!B166,#REF!,0)),\"\")","v":{"$error":"#REF!"}}]
[null,null,{"$f":"_xlfn.IFNA(INDEX(#REF!,MATCH('Old Transport'!B167,#REF!,0)),\"\")","v":{"$error":"#REF!"}},{"$f":"_xlfn.IFNA(INDEX(#REF!,MATCH('Old Transport'!B167,#REF!,0)),\"\")","v":{"$error":"#REF!"}},{"$f":"_xlfn.IFNA(INDEX(#REF!,MATCH('Old Transport'!B167,#REF!,0)),\"\")","v":{"$error":"#REF!"}},{"$f":"_xlfn.IFNA(INDEX(#REF!,MATCH('Old Transport'!B167,#REF!,0)),\"\")","v":{"$error":"#REF!"}}]
[null,null,{"$f":"_xlfn.IFNA(INDEX(#REF!,MATCH('Old Transport'!B168,#REF!,0)),\"\")","v":{"$error":"#REF!"}},{"$f":"_xlfn.IFNA(INDEX(#REF!,MATCH('Old Transport'!B168,#REF!,0)),\"\")","v":{"$error":"#REF!"}},{"$f":"_xlfn.IFNA(INDEX(#REF!,MATCH('Old Transport'!B168,#REF!,0)),\"\")","v":{"$error":"#REF!"}},{"$f":"_xlfn.IFNA(INDEX(#REF!,MATCH('Old Transport'!B168,#REF!,0)),\"\")","v":{"$error":"#REF!"}}]
[null,null,{"$f":"_xlfn.IFNA(INDEX(#REF!,MATCH('Old Transport'!B169,#REF!,0)),\"\")","v":{"$error":"#REF!"}},{"$f":"_xlfn.IFNA(INDEX(#REF!,MATCH('Old Transport'!B169,#REF!,0)),\"\")","v":{"$error":"#REF!"}},{"$f":"_xlfn.IFNA(INDEX(#REF!,MATCH('Old Transport'!B169,#REF!,0)),\"\")","v":{"$error":"#REF!"}},{"$f":"_xlfn.IFNA(INDEX(#REF!,MATCH('Old Transport'!B169,#REF!,0)),\"\")","v":{"$error":"#REF!"}}]
[null,null,{"$f":"_xlfn.IFNA(INDEX(#REF!,MATCH('Old Transport'!B170,#REF!,0)),\"\")","v":{"$error":"#REF!"}},{"$f":"_xlfn.IFNA(INDEX(#REF!,MATCH('Old Transport'!B170,#REF!,0)),\"\")","v":{"$error":"#REF!"}},{"$f":"_xlfn.IFNA(INDEX(#REF!,MATCH('Old Transport'!B170,#REF!,0)),\"\")","v":{"$error":"#REF!"}},{"$f":"_xlfn.IFNA(INDEX(#REF!,MATCH('Old Transport'!B170,#REF!,0)),\"\")","v":{"$error":"#REF!"}}]
[null,null,{"$f":"_xlfn.IFNA(INDEX(#REF!,MATCH('Old Transport'!B171,#REF!,0)),\"\")","v":{"$error":"#REF!"}},{"$f":"_xlfn.IFNA(INDEX(#REF!,MATCH('Old Transport'!B171,#REF!,0)),\"\")","v":{"$error":"#REF!"}},{"$f":"_xlfn.IFNA(INDEX(#REF!,MATCH('Old Transport'!B171,#REF!,0)),\"\")","v":{"$error":"#REF!"}},{"$f":"_xlfn.IFNA(INDEX(#REF!,MATCH('Old Transport'!B171,#REF!,0)),\"\")","v":{"$error":"#REF!"}}]
[null,null,{"$f":"_xlfn.IFNA(INDEX(#REF!,MATCH('Old Transport'!B172,#REF!,0)),\"\")","v":{"$error":"#REF!"}},{"$f":"_xlfn.IFNA(INDEX(#REF!,MATCH('Old Transport'!B172,#REF!,0)),\"\")","v":{"$error":"#REF!"}},{"$f":"_xlfn.IFNA(INDEX(#REF!,MATCH('Old Transport'!B172,#REF!,0)),\"\")","v":{"$error":"#REF!"}},{"$f":"_xlfn.IFNA(INDEX(#REF!,MATCH('Old Transport'!B172,#REF!,0)),\"\")","v":{"$error":"#REF!"}}]
[null,null,{"$f":"_xlfn.IFNA(INDEX(#REF!,MATCH('Old Transport'!B173,#REF!,0)),\"\")","v":{"$error":"#REF!"}},{"$f":"_xlfn.IFNA(INDEX(#REF!,MATCH('Old Transport'!B173,#REF!,0)),\"\")","v":{"$error":"#REF!"}},{"$f":"_xlfn.IFNA(INDEX(#REF!,MATCH('Old Transport'!B173,#REF!,0)),\"\")","v":{"$error":"#REF!"}},{"$f":"_xlfn.IFNA(INDEX(#REF!,MATCH('Old Transport'!B173,#REF!,0)),\"\")","v":{"$error":"#REF!"}}]
[null,null,{"$f":"_xlfn.IFNA(INDEX(#REF!,MATCH('Old Transport'!B174,#REF!,0)),\"\")","v":{"$error":"#REF!"}},{"$f":"_xlfn.IFNA(INDEX(#REF!,MATCH('Old Transport'!B174,#REF!,0)),\"\")","v":{"$error":"#REF!"}},{"$f":"_xlfn.IFNA(INDEX(#REF!,MATCH('Old Transport'!B174,#REF!,0)),\"\")","v":{"$error":"#REF!"}},{"$f":"_xlfn.IFNA(INDEX(#REF!,MATCH('Old Transport'!B174,#REF!,0)),\"\")","v":{"$error":"#REF!"}}]
[null,null,{"$f":"_xlfn.IFNA(INDEX(#REF!,MATCH('Old Transport'!B175,#REF!,0)),\"\")","v":{"$error":"#REF!"}},{"$f":"_xlfn.IFNA(INDEX(#REF!,MATCH('Old Transport'!B175,#REF!,0)),\"\")","v":{"$error":"#REF!"}},{"$f":"_xlfn.IFNA(INDEX(#REF!,MATCH('Old Transport'!B175,#REF!,0)),\"\")","v":{"$error":"#REF!"}},{"$f":"_xlfn.IFNA(INDEX(#REF!,MATCH('Old Transport'!B175,#REF!,0)),\"\")","v":{"$error":"#REF!"}}]
[null,null,{"$f":"_xlfn.IFNA(INDEX(#REF!,MATCH('Old Transport'!B176,#REF!,0)),\"\")","v":{"$error":"#REF!"}},{"$f":"_xlfn.IFNA(INDEX(#REF!,MATCH('Old Transport'!B176,#REF!,0)),\"\")","v":{"$error":"#REF!"}},{"$f":"_xlfn.IFNA(INDEX(#REF!,MATCH('Old Transport'!B176,#REF!,0)),\"\")","v":{"$error":"#REF!"}},{"$f":"_xlfn.IFNA(INDEX(#REF!,MATCH('Old Transport'!B176,#REF!,0)),\"\")","v":{"$error":"#REF!"}}]
[null,null,{"$f":"_xlfn.IFNA(INDEX(#REF!,MATCH('Old Transport'!B177,#REF!,0)),\"\")","v":{"$error":"#REF!"}},{"$f":"_xlfn.IFNA(INDEX(#REF!,MATCH('Old Transport'!B177,#REF!,0)),\"\")","v":{"$error":"#REF!"}},{"$f":"_xlfn.IFNA(INDEX(#REF!,MATCH('Old Transport'!B177,#REF!,0)),\"\")","v":{"$error":"#REF!"}},{"$f":"_xlfn.IFNA(INDEX(#REF!,MATCH('Old Transport'!B177,#REF!,0)),\"\")","v":{"$error":"#REF!"}}]
[null,null,{"$f":"_xlfn.IFNA(INDEX(#REF!,MATCH('Old Transport'!B178,#REF!,0)),\"\")","v":{"$error":"#REF!"}},{"$f":"_xlfn.IFNA(INDEX(#REF!,MATCH('Old Transport'!B178,#REF!,0)),\"\")","v":{"$error":"#REF!"}},{"$f":"_xlfn.IFNA(INDEX(#REF!,MATCH('Old Transport'!B178,#REF!,0)),\"\")","v":{"$error":"#REF!"}},{"$f":"_xlfn.IFNA(INDEX(#REF!,MATCH('Old Transport'!B178,#REF!,0)),\"\")","v":{"$error":"#REF!"}}]
[null,null,{"$f":"_xlfn.IFNA(INDEX(#REF!,MATCH('Old Transport'!B179,#REF!,0)),\"\")","v":{"$error":"#REF!"}},{"$f":"_xlfn.IFNA(INDEX(#REF!,MATCH('Old Transport'!B179,#REF!,0)),\"\")","v":{"$error":"#REF!"}},{"$f":"_xlfn.IFNA(INDEX(#REF!,MATCH('Old Transport'!B179,#REF!,0)),\"\")","v":{"$error":"#REF!"}},{"$f":"_xlfn.IFNA(INDEX(#REF!,MATCH('Old Transport'!B179,#REF!,0)),\"\")","v":{"$error":"#REF!"}}]
[null,null,{"$f":"_xlfn.IFNA(INDEX(#REF!,MATCH('Old Transport'!B180,#REF!,0)),\"\")","v":{"$error":"#REF!"}},{"$f":"_xlfn.IFNA(INDEX(#REF!,MATCH('Old Transport'!B180,#REF!,0)),\"\")","v":{"$error":"#REF!"}},{"$f":"_xlfn.IFNA(INDEX(#REF!,MATCH('Old Transport'!B180,#REF!,0)),\"\")","v":{"$error":"#REF!"}},{"$f":"_xlfn.IFNA(INDEX(#REF!,MATCH('Old Transport'!B180,#REF!,0)),\"\")","v":{"$error":"#REF!"}}]
[null,null,{"$f":"_xlfn.IFNA(INDEX(#REF!,MATCH('Old Transport'!B181,#REF!,0)),\"\")","v":{"$error":"#REF!"}},{"$f":"_xlfn.IFNA(INDEX(#REF!,MATCH('Old Transport'!B181,#REF!,0)),\"\")","v":{"$error":"#REF!"}},{"$f":"_xlfn.IFNA(INDEX(#REF!,MATCH('Old Transport'!B181,#REF!,0)),\"\")","v":{"$error":"#REF!"}},{"$f":"_xlfn.IFNA(INDEX(#REF!,MATCH('Old Transport'!B181,#REF!,0)),\"\")","v":{"$error":"#REF!"}}]
[null,null,{"$f":"_xlfn.IFNA(INDEX(#REF!,MATCH('Old Transport'!B182,#REF!,0)),\"\")","v":{"$error":"#REF!"}},{"$f":"_xlfn.IFNA(INDEX(#REF!,MATCH('Old Transport'!B182,#REF!,0)),\"\")","v":{"$error":"#REF!"}},{"$f":"_xlfn.IFNA(INDEX(#REF!,MATCH('Old Transport'!B182,#REF!,0)),\"\")","v":{"$error":"#REF!"}},{"$f":"_xlfn.IFNA(INDEX(#REF!,MATCH('Old Transport'!B182,#REF!,0)),\"\")","v":{"$error":"#REF!"}}]
[null,null,{"$f":"_xlfn.IFNA(INDEX(#REF!,MATCH('Old Transport'!B183,#REF!,0)),\"\")","v":{"$error":"#REF!"}},{"$f":"_xlfn.IFNA(INDEX(#REF!,MATCH('Old Transport'!B183,#REF!,0)),\"\")","v":{"$error":"#REF!"}},{"$f":"_xlfn.IFNA(INDEX(#REF!,MATCH('Old Transport'!B183,#REF!,0)),\"\")","v":{"$error":"#REF!"}},{"$f":"_xlfn.IFNA(INDEX(#REF!,MATCH('Old Transport'!B183,#REF!,0)),\"\")","v":{"$error":"#REF!"}}]
[null,null,{"$f":"_xlfn.IFNA(INDEX(#REF!,MATCH('Old Transport'!B184,#REF!,0)),\"\")","v":{"$error":"#REF!"}},{"$f":"_xlfn.IFNA(INDEX(#REF!,MATCH('Old Transport'!B184,#REF!,0)),\"\")","v":{"$error":"#REF!"}},{"$f":"_xlfn.IFNA(INDEX(#REF!,MATCH('Old Transport'!B184,#REF!,0)),\"\")","v":{"$error":"#REF!"}},{"$f":"_xlfn.IFNA(INDEX(#REF!,MATCH('Old Transport'!B184,#REF!,0)),\"\")","v":{"$error":"#REF!"}}]
[null,null,{"$f":"_xlfn.IFNA(INDEX(#REF!,MATCH('Old Transport'!B185,#REF!,0)),\"\")","v":{"$error":"#REF!"}},{"$f":"_xlfn.IFNA(INDEX(#REF!,MATCH('Old Transport'!B185,#REF!,0)),\"\")","v":{"$error":"#REF!"}},{"$f":"_xlfn.IFNA(INDEX(#REF!,MATCH('Old Transport'!B185,#REF!,0)),\"\")","v":{"$error":"#REF!"}},{"$f":"_xlfn.IFNA(INDEX(#REF!,MATCH('Old Transport'!B185,#REF!,0)),\"\")","v":{"$error":"#REF!"}}]
[null,null,{"$f":"_xlfn.IFNA(INDEX(#REF!,MATCH('Old Transport'!B186,#REF!,0)),\"\")","v":{"$error":"#REF!"}},{"$f":"_xlfn.IFNA(INDEX(#REF!,MATCH('Old Transport'!B186,#REF!,0)),\"\")","v":{"$error":"#REF!"}},{"$f":"_xlfn.IFNA(INDEX(#REF!,MATCH('Old Transport'!B186,#REF!,0)),\"\")","v":{"$error":"#REF!"}},{"$f":"_xlfn.IFNA(INDEX(#REF!,MATCH('Old Transport'!B186,#REF!,0)),\"\")","v":{"$error":"#REF!"}}]
[null,null,{"$f":"_xlfn.IFNA(INDEX(#REF!,MATCH('Old Transport'!B187,#REF!,0)),\"\")","v":{"$error":"#REF!"}},{"$f":"_xlfn.IFNA(INDEX(#REF!,MATCH('Old Transport'!B187,#REF!,0)),\"\")","v":{"$error":"#REF!"}},{"$f":"_xlfn.IFNA(INDEX(#REF!,MATCH('Old Transport'!B187,#REF!,0)),\"\")","v":{"$error":"#REF!"}},{"$f":"_xlfn.IFNA(INDEX(#REF!,MATCH('Old Transport'!B187,#REF!,0)),\"\")","v":{"$error":"#REF!"}}]
[null,null,{"$f":"_xlfn.IFNA(INDEX(#REF!,MATCH('Old Transport'!B188,#REF!,0)),\"\")","v":{"$error":"#REF!"}},{"$f":"_xlfn.IFNA(INDEX(#REF!,MATCH('Old Transport'!B188,#REF!,0)),\"\")","v":{"$error":"#REF!"}},{"$f":"_xlfn.IFNA(INDEX(#REF!,MATCH('Old Transport'!B188,#REF!,0)),\"\")","v":{"$error":"#REF!"}},{"$f":"_xlfn.IFNA(INDEX(#REF!,MATCH('Old Transport'!B188,#REF!,0)),\"\")","v":{"$error":"#REF!"}}]
[null,null,{"$f":"_xlfn.IFNA(INDEX(#REF!,MATCH('Old Transport'!B189,#REF!,0)),\"\")","v":{"$error":"#REF!"}},{"$f":"_xlfn.IFNA(INDEX(#REF!,MATCH('Old Transport'!B189,#REF!,0)),\"\")","v":{"$error":"#REF!"}},{"$f":"_xlfn.IFNA(INDEX(#REF!,MATCH('Old Transport'!B189,#REF!,0)),\"\")","v":{"$error":"#REF!"}},{"$f":"_xlfn.IFNA(INDEX(#REF!,MATCH('Old Transport'!B189,#REF!,0)),\"\")","v":{"$error":"#REF!"}}]
[null,null,{"$f":"_xlfn.IFNA(INDEX(#REF!,MATCH('Old Transport'!B190,#REF!,0)),\"\")","v":{"$error":"#REF!"}},{"$f":"_xlfn.IFNA(INDEX(#REF!,MATCH('Old Transport'!B190,#REF!,0)),\"\")","v":{"$error":"#REF!"}},{"$f":"_xlfn.IFNA(INDEX(#REF!,MATCH('Old Transport'!B190,#REF!,0)),\"\")","v":{"$error":"#REF!"}},{"$f":"_xlfn.IFNA(INDEX(#REF!,MATCH('Old Transport'!B190,#REF!,0)),\"\")","v":{"$error":"#REF!"}}]
[null,null,{"$f":"_xlfn.IFNA(INDEX(#REF!,MATCH('Old Transport'!B191,#REF!,0)),\"\")","v":{"$error":"#REF!"}},{"$f":"_xlfn.IFNA(INDEX(#REF!,MATCH('Old Transport'!B191,#REF!,0)),\"\")","v":{"$error":"#REF!"}},{"$f":"_xlfn.IFNA(INDEX(#REF!,MATCH('Old Transport'!B191,#REF!,0)),\"\")","v":{"$error":"#REF!"}},{"$f":"_xlfn.IFNA(INDEX(#REF!,MATCH('Old Transport'!B191,#REF!,0)),\"\")","v":{"$error":"#REF!"}}]
[null,null,{"$f":"_xlfn.IFNA(INDEX(#REF!,MATCH('Old Transport'!B192,#REF!,0)),\"\")","v":{"$error":"#REF!"}},{"$f":"_xlfn.IFNA(INDEX(#REF!,MATCH('Old Transport'!B192,#REF!,0)),\"\")","v":{"$error":"#REF!"}},{"$f":"_xlfn.IFNA(INDEX(#REF!,MATCH('Old Transport'!B192,#REF!,0)),\"\")","v":{"$error":"#REF!"}},{"$f":"_xlfn.IFNA(INDEX(#REF!,MATCH('Old Transport'!B192,#REF!,0)),\"\")","v":{"$error":"#REF!"}}]
[null,null,{"$f":"_xlfn.IFNA(INDEX(#REF!,MATCH('Old Transport'!B193,#REF!,0)),\"\")","v":{"$error":"#REF!"}},{"$f":"_xlfn.IFNA(INDEX(#REF!,MATCH('Old Transport'!B193,#REF!,0)),\"\")","v":{"$error":"#REF!"}},{"$f":"_xlfn.IFNA(INDEX(#REF!,MATCH('Old Transport'!B193,#REF!,0)),\"\")","v":{"$error":"#REF!"}},{"$f":"_xlfn.IFNA(INDEX(#REF!,MATCH('Old Transport'!B193,#REF!,0)),\"\")","v":{"$error":"#REF!"}}]
[null,null,{"$f":"_xlfn.IFNA(INDEX(#REF!,MATCH('Old Transport'!B194,#REF!,0)),\"\")","v":{"$error":"#REF!"}},{"$f":"_xlfn.IFNA(INDEX(#REF!,MATCH('Old Transport'!B194,#REF!,0)),\"\")","v":{"$error":"#REF!"}},{"$f":"_xlfn.IFNA(INDEX(#REF!,MATCH('Old Transport'!B194,#REF!,0)),\"\")","v":{"$error":"#REF!"}},{"$f":"_xlfn.IFNA(INDEX(#REF!,MATCH('Old Transport'!B194,#REF!,0)),\"\")","v":{"$error":"#REF!"}}]
[null,null,{"$f":"_xlfn.IFNA(INDEX(#REF!,MATCH('Old Transport'!B195,#REF!,0)),\"\")","v":{"$error":"#REF!"}},{"$f":"_xlfn.IFNA(INDEX(#REF!,MATCH('Old Transport'!B195,#REF!,0)),\"\")","v":{"$error":"#REF!"}},{"$f":"_xlfn.IFNA(INDEX(#REF!,MATCH('Old Transport'!B195,#REF!,0)),\"\")","v":{"$error":"#REF!"}},{"$f":"_xlfn.IFNA(INDEX(#REF!,MATCH('Old Transport'!B195,#REF!,0)),\"\")","v":{"$error":"#REF!"}}]
[null,null,{"$f":"_xlfn.IFNA(INDEX(#REF!,MATCH('Old Transport'!B196,#REF!,0)),\"\")","v":{"$error":"#REF!"}},{"$f":"_xlfn.IFNA(INDEX(#REF!,MATCH('Old Transport'!B196,#REF!,0)),\"\")","v":{"$error":"#REF!"}},{"$f":"_xlfn.IFNA(INDEX(#REF!,MATCH('Old Transport'!B196,#REF!,0)),\"\")","v":{"$error":"#REF!"}},{"$f":"_xlfn.IFNA(INDEX(#REF!,MATCH('Old Transport'!B196,#REF!,0)),\"\")","v":{"$error":"#REF!"}}]
[null,null,{"$f":"_xlfn.IFNA(INDEX(#REF!,MATCH('Old Transport'!B197,#REF!,0)),\"\")","v":{"$error":"#REF!"}},{"$f":"_xlfn.IFNA(INDEX(#REF!,MATCH('Old Transport'!B197,#REF!,0)),\"\")","v":{"$error":"#REF!"}},{"$f":"_xlfn.IFNA(INDEX(#REF!,MATCH('Old Transport'!B197,#REF!,0)),\"\")","v":{"$error":"#REF!"}},{"$f":"_xlfn.IFNA(INDEX(#REF!,MATCH('Old Transport'!B197,#REF!,0)),\"\")","v":{"$error":"#REF!"}}]
[null,null,{"$f":"_xlfn.IFNA(INDEX(#REF!,MATCH('Old Transport'!B198,#REF!,0)),\"\")","v":{"$error":"#REF!"}},{"$f":"_xlfn.IFNA(INDEX(#REF!,MATCH('Old Transport'!B198,#REF!,0)),\"\")","v":{"$error":"#REF!"}},{"$f":"_xlfn.IFNA(INDEX(#REF!,MATCH('Old Transport'!B198,#REF!,0)),\"\")","v":{"$error":"#REF!"}},{"$f":"_xlfn.IFNA(INDEX(#REF!,MATCH('Old Transport'!B198,#REF!,0)),\"\")","v":{"$error":"#REF!"}}]
[null,null,{"$f":"_xlfn.IFNA(INDEX(#REF!,MATCH('Old Transport'!B199,#REF!,0)),\"\")","v":{"$error":"#REF!"}},{"$f":"_xlfn.IFNA(INDEX(#REF!,MATCH('Old Transport'!B199,#REF!,0)),\"\")","v":{"$error":"#REF!"}},{"$f":"_xlfn.IFNA(INDEX(#REF!,MATCH('Old Transport'!B199,#REF!,0)),\"\")","v":{"$error":"#REF!"}},{"$f":"_xlfn.IFNA(INDEX(#REF!,MATCH('Old Transport'!B199,#REF!,0)),\"\")","v":{"$error":"#REF!"}}]
[null,null,{"$f":"_xlfn.IFNA(INDEX(#REF!,MATCH('Old Transport'!B200,#REF!,0)),\"\")","v":{"$error":"#REF!"}},{"$f":"_xlfn.IFNA(INDEX(#REF!,MATCH('Old Transport'!B200,#REF!,0)),\"\")","v":{"$error":"#REF!"}},{"$f":"_xlfn.IFNA(INDEX(#REF!,MATCH('Old Transport'!B200,#REF!,0)),\"\")","v":{"$error":"#REF!"}},{"$f":"_xlfn.IFNA(INDEX(#REF!,MATCH('Old Transport'!B200,#REF!,0)),\"\")","v":{"$error":"#REF!"}}]
[null,null,{"$f":"_xlfn.IFNA(INDEX(#REF!,MATCH('Old Transport'!B201,#REF!,0)),\"\")","v":{"$error":"#REF!"}},{"$f":"_xlfn.IFNA(INDEX(#REF!,MATCH('Old Transport'!B201,#REF!,0)),\"\")","v":{"$error":"#REF!"}},{"$f":"_xlfn.IFNA(INDEX(#REF!,MATCH('Old Transport'!B201,#REF!,0)),\"\")","v":{"$error":"#REF!"}},{"$f":"_xlfn.IFNA(INDEX(#REF!,MATCH('Old Transport'!B201,#REF!,0)),\"\")","v":{"$error":"#REF!"}}]
[null,null,{"$f":"_xlfn.IFNA(INDEX(#REF!,MATCH('Old Transport'!B202,#REF!,0)),\"\")","v":{"$error":"#REF!"}},{"$f":"_xlfn.IFNA(INDEX(#REF!,MATCH('Old Transport'!B202,#REF!,0)),\"\")","v":{"$error":"#REF!"}},{"$f":"_xlfn.IFNA(INDEX(#REF!,MATCH('Old Transport'!B202,#REF!,0)),\"\")","v":{"$error":"#REF!"}},{"$f":"_xlfn.IFNA(INDEX(#REF!,MATCH('Old Transport'!B202,#REF!,0)),\"\")","v":{"$error":"#REF!"}}]
[null,null,{"$f":"_xlfn.IFNA(INDEX(#REF!,MATCH('Old Transport'!B203,#REF!,0)),\"\")","v":{"$error":"#REF!"}},{"$f":"_xlfn.IFNA(INDEX(#REF!,MATCH('Old Transport'!B203,#REF!,0)),\"\")","v":{"$error":"#REF!"}},{"$f":"_xlfn.IFNA(INDEX(#REF!,MATCH('Old Transport'!B203,#REF!,0)),\"\")","v":{"$error":"#REF!"}},{"$f":"_xlfn.IFNA(INDEX(#REF!,MATCH('Old Transport'!B203,#REF!,0)),\"\")","v":{"$error":"#REF!"}}]
[null,null,{"$f":"_xlfn.IFNA(INDEX(#REF!,MATCH('Old Transport'!B204,#REF!,0)),\"\")","v":{"$error":"#REF!"}},{"$f":"_xlfn.IFNA(INDEX(#REF!,MATCH('Old Transport'!B204,#REF!,0)),\"\")","v":{"$error":"#REF!"}},{"$f":"_xlfn.IFNA(INDEX(#REF!,MATCH('Old Transport'!B204,#REF!,0)),\"\")","v":{"$error":"#REF!"}},{"$f":"_xlfn.IFNA(INDEX(#REF!,MATCH('Old Transport'!B204,#REF!,0)),\"\")","v":{"$error":"#REF!"}}]
[null,null,{"$f":"_xlfn.IFNA(INDEX(#REF!,MATCH('Old Transport'!B205,#REF!,0)),\"\")","v":{"$error":"#REF!"}},{"$f":"_xlfn.IFNA(INDEX(#REF!,MATCH('Old Transport'!B205,#REF!,0)),\"\")","v":{"$error":"#REF!"}},{"$f":"_xlfn.IFNA(INDEX(#REF!,MATCH('Old Transport'!B205,#REF!,0)),\"\")","v":{"$error":"#REF!"}},{"$f":"_xlfn.IFNA(INDEX(#REF!,MATCH('Old Transport'!B205,#REF!,0)),\"\")","v":{"$error":"#REF!"}}]
[null,null,{"$f":"_xlfn.IFNA(INDEX(#REF!,MATCH('Old Transport'!B206,#REF!,0)),\"\")","v":{"$error":"#REF!"}},{"$f":"_xlfn.IFNA(INDEX(#REF!,MATCH('Old Transport'!B206,#REF!,0)),\"\")","v":{"$error":"#REF!"}},{"$f":"_xlfn.IFNA(INDEX(#REF!,MATCH('Old Transport'!B206,#REF!,0)),\"\")","v":{"$error":"#REF!"}},{"$f":"_xlfn.IFNA(INDEX(#REF!,MATCH('Old Transport'!B206,#REF!,0)),\"\")","v":{"$error":"#REF!"}}]
[null,null,{"$f":"_xlfn.IFNA(INDEX(#REF!,MATCH('Old Transport'!B207,#REF!,0)),\"\")","v":{"$error":"#REF!"}},{"$f":"_xlfn.IFNA(INDEX(#REF!,MATCH('Old Transport'!B207,#REF!,0)),\"\")","v":{"$error":"#REF!"}},{"$f":"_xlfn.IFNA(INDEX(#REF!,MATCH('Old Transport'!B207,#REF!,0)),\"\")","v":{"$error":"#REF!"}},{"$f":"_xlfn.IFNA(INDEX(#REF!,MATCH('Old Transport'!B207,#REF!,0)),\"\")","v":{"$error":"#REF!"}}]
[null,null,{"$f":"_xlfn.IFNA(INDEX(#REF!,MATCH('Old Transport'!B208,#REF!,0)),\"\")","v":{"$error":"#REF!"}},{"$f":"_xlfn.IFNA(INDEX(#REF!,MATCH('Old Transport'!B208,#REF!,0)),\"\")","v":{"$error":"#REF!"}},{"$f":"_xlfn.IFNA(INDEX(#REF!,MATCH('Old Transport'!B208,#REF!,0)),\"\")","v":{"$error":"#REF!"}},{"$f":"_xlfn.IFNA(INDEX(#REF!,MATCH('Old Transport'!B208,#REF!,0)),\"\")","v":{"$error":"#REF!"}}]
[null,null,{"$f":"_xlfn.IFNA(INDEX(#REF!,MATCH('Old Transport'!B209,#REF!,0)),\"\")","v":{"$error":"#REF!"}},{"$f":"_xlfn.IFNA(INDEX(#REF!,MATCH('Old Transport'!B209,#REF!,0)),\"\")","v":{"$error":"#REF!"}},{"$f":"_xlfn.IFNA(INDEX(#REF!,MATCH('Old Transport'!B209,#REF!,0)),\"\")","v":{"$error":"#REF!"}},{"$f":"_xlfn.IFNA(INDEX(#REF!,MATCH('Old Transport'!B209,#REF!,0)),\"\")","v":{"$error":"#REF!"}}]
[null,null,{"$f":"_xlfn.IFNA(INDEX(#REF!,MATCH('Old Transport'!B210,#REF!,0)),\"\")","v":{"$error":"#REF!"}},{"$f":"_xlfn.IFNA(INDEX(#REF!,MATCH('Old Transport'!B210,#REF!,0)),\"\")","v":{"$error":"#REF!"}},{"$f":"_xlfn.IFNA(INDEX(#REF!,MATCH('Old Transport'!B210,#REF!,0)),\"\")","v":{"$error":"#REF!"}},{"$f":"_xlfn.IFNA(INDEX(#REF!,MATCH('Old Transport'!B210,#REF!,0)),\"\")","v":{"$error":"#REF!"}}]
[null,null,{"$f":"_xlfn.IFNA(INDEX(#REF!,MATCH('Old Transport'!B211,#REF!,0)),\"\")","v":{"$error":"#REF!"}},{"$f":"_xlfn.IFNA(INDEX(#REF!,MATCH('Old Transport'!B211,#REF!,0)),\"\")","v":{"$error":"#REF!"}},{"$f":"_xlfn.IFNA(INDEX(#REF!,MATCH('Old Transport'!B211,#REF!,0)),\"\")","v":{"$error":"#REF!"}},{"$f":"_xlfn.IFNA(INDEX(#REF!,MATCH('Old Transport'!B211,#REF!,0)),\"\")","v":{"$error":"#REF!"}}]
[null,null,{"$f":"_xlfn.IFNA(INDEX(#REF!,MATCH('Old Transport'!B212,#REF!,0)),\"\")","v":{"$error":"#REF!"}},{"$f":"_xlfn.IFNA(INDEX(#REF!,MATCH('Old Transport'!B212,#REF!,0)),\"\")","v":{"$error":"#REF!"}},{"$f":"_xlfn.IFNA(INDEX(#REF!,MATCH('Old Transport'!B212,#REF!,0)),\"\")","v":{"$error":"#REF!"}},{"$f":"_xlfn.IFNA(INDEX(#REF!,MATCH('Old Transport'!B212,#REF!,0)),\"\")","v":{"$error":"#REF!"}}]